{"text_format":"1","workbook":"xlsx","n_sheets":59,"sheets":["modList07","modList05","modProv","Инструкция","Лог обновления","Титульный","Территории","Дифференциация","Форма 1.0.1 | Форма 3.5.1","Форма 3.5.1","Форма 1.0.1 | Форма 3.5.2","Форма 3.5.2","Форма 1.0.1 | Форма 3.6","Форма 3.6","Форма 1.0.1 | Форма 3.7","Форма 3.7","Форма 1.0.2","Сведения об изменении","Комментарии","Проверка","modReestr","AllSheetsInThisWorkbook","modCheckCyan","modInfo","TEHSHEET","modfrmSelectData","modList06","modList01","modList08","et_union_hor","et_union_vert","modList00","modList02","modList03","modList04","modList09","modHTTP","modfrmRegion","MR_LIST","REESTR_VT","REESTR_VED","modfrmReestrObj","DataOrg","modfrmReestr","modUpdTemplMain","REESTR_ORG","modClassifierValidate","modHyp","modfrmDateChoose","modComm","modThisWorkbook","REESTR_MO","REESTR_MO_FILTER","modfrmReestrMR","modServiceModule","modfrmCheckUpdates","REESTR_DS","REESTR_CHS","REESTR_LINK"],"not_rendered":{"charts":0,"images":25,"macros":1,"external_links":0,"defined_names":261,"comments":9,"pivot_tables":0},"unopened":[],"bounds":{"document_bytes":16777216,"sheet_cells":100000,"rows_first":2000,"rows_last":500,"rows_between":2000,"halvings":0,"cell_chars":16384,"cell_head_chars":4096},"cells_cut":0,"cells_raw":0,"read":"whole","date_system":"1900"}

{"sheet":"modList07","index":0,"n_rows":0,"n_cols":0,"rows_kept":0,"cut":false,"hidden":true,"merged":[]}

{"sheet":"modList05","index":1,"n_rows":0,"n_cols":0,"rows_kept":0,"cut":false,"hidden":true,"merged":[]}

{"sheet":"modProv","index":2,"n_rows":0,"n_cols":0,"rows_kept":0,"cut":false,"hidden":true,"merged":[]}

{"sheet":"Инструкция","index":3,"n_rows":83,"n_cols":27,"rows_kept":83,"cut":false,"hidden":false,"merged":[[34,4,38,23],[22,15,22,22],[21,5,21,12],[1,1,1,6],[2,1,2,2],[4,1,4,24],[6,4,18,23],[20,5,20,12],[20,15,20,23],[21,15,21,23],[39,4,39,23],[40,4,44,23],[45,4,56,23],[80,5,80,18],[58,4,58,6],[58,7,58,23],[59,4,59,6],[71,5,71,23],[57,4,57,20],[70,4,70,19],[82,5,82,23],[60,7,60,23],[78,4,78,23],[72,5,72,23],[73,5,73,23],[74,4,74,23],[75,4,75,23],[76,4,76,23],[77,4,77,23],[69,4,69,19]]}
[null,null,null,null,null,null,null,null,null,null,null,null,null,null,null,null,null,null,null,null,null,null,null,null,null,null," (требуется обновление)"]
[null,{"$f":"\"Код отчёта: \" & GetCode()","v":"Код отчёта: FAS.JKH.OPEN.INFO.BALANCE.VO"}]
[null,{"$f":"\"Версия \" & GetVersion()","v":"Версия 1.0.6"}]
[]
[null,{"$f":"Титульный!E5","v":"Информация о показателях финансово-хозяйственной деятельности, об основных потребительских характеристиках регулируемых товаров и услуг, об инвестиционных программах регулируемой организации в сфере водоотведения и (или) очистки сточных вод"}]
[]
[null,null,null,null,"• На рабочем месте должен быть установлен MS Office 2007 SP3, 2010, 2013, 2016 с полной версией MS Excel\n\n• Макросы во время работы должны быть включены (!)\n\n• Для корректной работы отчёта требуется выбрать низкий уровень безопасности\n(В меню MS Excel 2007/2010/2013/2016: Параметры Excel | Центр управления безопасностью | Параметры центра управления безопасностью | Параметры макросов | Включить все макросы | ОК)\n\n• Если Вы работаете в табличном процессоре MS Excel 2007 и выше, то можете использовать для работы формат XLSB (Двоичная книга Excel). При работе в формате XLSB заметно быстрее происходит сохранение файла, а также уменьшается размер по сравнению с форматами XLS и XLSM\n\n• Не рекомендуется снимать защиту с листов и каким-либо образом модифицировать защищаемые формулы и расчётные поля, в противном случае, отчёт будет отклонён системой\n\n• При сохранении не следует выбирать формат XLSX (Книга Excel), так как в указанном формате макросы, необходимые для работы отчёта, безвозвратно удаляются"]
[]
[]
[]
[]
[]
[]
[]
[]
[]
[]
[]
[]
[]
[null,null,null,null,"A"," - не обязательные для заполнения",null,null,null,null,null,null,null,null,"A"," - с формулами и константами"]
[null,null,null,null,"A"," - обязательные для заполнения",null,null,null,null,null,null,null,null,"A"," - с выбором значений до двойному клику"]
[]
[]
[]
[]
[]
[]
[]
[]
[]
[]
[]
[]
[null,null,null,null,"Если в предложенном Вам списке необходимая организация, МР/МО отсутствуют, обновите реестры с помощью кнопок\n\nВ результате синхронизации с базой данных список организаций (МР/МО) будет заменён актуальным (механизм синхронизации требует подключения к сети Интернет и основан на использовании протокола HTTPS (TCP порт 443))\n\nЕсли после обновления Вам не удалось найти необходимую организацию в списке, обратитесь к ответственному за поддержание реестра Вашего региона."]
[]
[]
[]
[]
[]
[]
[]
[]
[]
[]
[null,null,null,null,"• При сохранении шаблона осуществляется проверка корректности данных, в том числе на наличие значений в ячейках, обязательных для заполнения\n\n• Если какая-то ячейка не удовлетворяет условию проверки, на лист «Проверка» добавляется гиперссылка на данную ячейку и указывается причина ошибки\n\n• В колонке «Статус» для каждого сообщения возможны 2 значения: ошибка и предупреждение\n\n• При наличии сообщений со статусом «Ошибка» шаблон будет отклонён системой и не будет загружен в хранилище данных, сообщения со статусом «Предупреждение» носят информационный характер, и такой шаблон будет принят системой"]
[]
[]
[]
[]
[]
[]
[]
[]
[]
[]
[]
[null,null,null,null,"Обратиться за помощью в службу технической поддержки"]
[]
[]
[]
[]
[]
[]
[]
[]
[]
[]
[]
[null,null,null,null,"Инструкция по загрузке сопроводительных материалов"]
[null,null,null,null,"Инструкция по работе с отчетной формой"]
[]
[]
[]
[]
[]
[]
[]
[null,null,null,null,"При наличии подключения к Интернет, можно автоматически проверять наличие доступных обновлений. Выберите способ оповещения о наличии обновлений для отчёта:"]
[]
[null,null,null,null,null,"проверять доступные обновления (рекомендуется)",null,null,null,null,null,null,null,null,null,null,null,null,null,null,null,null,null,null,null,null,"y"]
[]
[null,null,null,null,null,"никогда не проверять наличие обновлений (не рекомендуется)"]

{"sheet":"Лог обновления","index":4,"n_rows":37,"n_cols":3,"rows_kept":37,"cut":false,"hidden":true,"merged":[]}
["Дата/Время","Сообщение","Статус"]
["2019-04-23T13:58:20","Проверка доступных обновлений...","Информация"]
["2019-04-23T13:58:22","Доступно обновление до версии 1.0.5","Информация"]
["2019-04-23T13:58:22","Описание изменений: Версия 1.0.5, 1.0.4\n1. Исправление формулы расчета показателя 'Доля расходов, % (от суммы расходов по указанной статье)' листа 'Форма 3.5.2'\n\nВерсия 1.0.3\n1. Корректировка ограничений пункта 'Среднесписочная численность основного производственного персонала' листа 'Форма 3.5.1'.\n\nВерсия 1.0.2\n1. Корректировка формулы пункта 'Себестоимость производимых товаров (оказываемых услуг) по регулируемому виду деятельности' листа 'Форма 3.5.1'\n\nВерсия 1.0.1\n1. Исправление отображения листа 'Форма 3.7' при отсутствии у организации инвестиционной программы","Информация"]
["2019-04-23T13:58:22","Размер файла обновления: 413184 байт","Информация"]
["2019-04-23T13:58:24","Подготовка к обновлению...","Информация"]
["2019-04-23T13:58:29","Создание резервной копии отменено, обновление прервано","Предупреждение"]
["2019-04-23T13:58:31","Проверка доступных обновлений...","Информация"]
["2019-04-23T13:58:32","Доступно обновление до версии 1.0.5","Информация"]
["2019-04-23T13:58:32","Описание изменений: Версия 1.0.5, 1.0.4\n1. Исправление формулы расчета показателя 'Доля расходов, % (от суммы расходов по указанной статье)' листа 'Форма 3.5.2'\n\nВерсия 1.0.3\n1. Корректировка ограничений пункта 'Среднесписочная численность основного производственного персонала' листа 'Форма 3.5.1'.\n\nВерсия 1.0.2\n1. Корректировка формулы пункта 'Себестоимость производимых товаров (оказываемых услуг) по регулируемому виду деятельности' листа 'Форма 3.5.1'\n\nВерсия 1.0.1\n1. Исправление отображения листа 'Форма 3.7' при отсутствии у организации инвестиционной программы","Информация"]
["2019-04-23T13:58:33","Размер файла обновления: 413184 байт","Информация"]
["2019-04-23T13:58:34","Подготовка к обновлению...","Информация"]
["2019-04-23T13:58:40","Сохранение файла резервной копии: D:\\DOCUMENTS\\Desktop\\1.BKP.xlsb","Информация"]
["2019-04-23T13:58:41","Резервная копия создана: D:\\DOCUMENTS\\Desktop\\1.BKP.xlsb","Информация"]
["2019-04-23T13:58:41","Создание книги для установки обновлений...","Информация"]
["2019-04-23T13:58:43","Файл обновления загружен: D:\\DOCUMENTS\\Desktop\\Стандарты раскрытия информации (отчетные формы)\\UPDATE.FAS.JKH.OPEN.INFO.BALANCE.VO.TO.1.0.5.57.xls","Информация"]
["2019-05-14T10:11:10","Проверка доступных обновлений...","Информация"]
["2019-05-14T10:11:11","Доступно обновление до версии 1.0.6","Информация"]
["2019-05-14T10:11:11","Описание изменений: Версии 1.0.6\n1. Корректировка при сохранении в части заполненности листа 'Территории'\n\nВерсия 1.0.5, 1.0.4\n1. Исправление формулы расчета показателя 'Доля расходов, % (от суммы расходов по указанной статье)' листа 'Форма 3.5.2'\n\nВерсия 1.0.3\n1. Корректировка ограничений пункта 'Среднесписочная численность основного производственного персонала' листа 'Форма 3.5.1'.\n\nВерсия 1.0.2\n1. Корректировка формулы пункта 'Себестоимость производимых товаров (оказываемых услуг) по регулируемому виду деятельности' листа 'Форма 3.5.1'\n\nВерсия 1.0.1\n1. Исправление отображения листа 'Форма 3.7' при отсутствии у организации инвестиционной программы","Информация"]
["2019-05-14T10:11:11","Размер файла обновления: 413184 байт","Информация"]
["2019-05-14T10:11:13","Подготовка к обновлению...","Информация"]
["2019-05-14T10:11:18","Сохранение файла резервной копии: D:\\DOCUMENTS\\Desktop\\123123.BKP.xlsb","Информация"]
["2019-05-14T10:11:18","Резервная копия создана: D:\\DOCUMENTS\\Desktop\\123123.BKP.xlsb","Информация"]
["2019-05-14T10:11:18","Создание книги для установки обновлений...","Информация"]
["2019-05-14T10:11:20","Файл обновления загружен: D:\\DOCUMENTS\\Desktop\\UPDATE.FAS.JKH.OPEN.INFO.BALANCE.VO.TO.1.0.6.86.xls","Информация"]
["2019-05-14T10:11:23","Обновление завершилось удачно! Шаблон FAS.JKH.OPEN.INFO.BALANCE.VO(v1.0.5).xlsb сохранен под именем 'FAS.JKH.OPEN.INFO.BALANCE.VO(v1.0.6).xlsb'","Информация"]
["2021-04-27T12:53:30","Проверка доступных обновлений...","Информация"]
["2021-04-27T12:53:42","Проверка доступных обновлений...","Информация"]
["2021-04-27T12:53:44","Нет доступных обновлений для отчёта с кодом FAS.JKH.OPEN.INFO.BALANCE.VO!","Информация"]
["2021-04-27T12:54:22","Проверка доступных обновлений...","Информация"]
["2021-04-27T12:54:23","Нет доступных обновлений для отчёта с кодом FAS.JKH.OPEN.INFO.BALANCE.VO!","Информация"]
["2021-04-27T13:09:52","Проверка доступных обновлений...","Информация"]
["2021-04-27T13:09:53","Нет доступных обновлений для отчёта с кодом FAS.JKH.OPEN.INFO.BALANCE.VO!","Информация"]
["2021-04-28T08:14:11","Проверка доступных обновлений...","Информация"]
["2021-04-28T08:14:14","Нет доступных обновлений для отчёта с кодом FAS.JKH.OPEN.INFO.BALANCE.VO!","Информация"]
["2021-04-28T12:59:38","Проверка доступных обновлений...","Информация"]
["2021-04-28T12:59:40","Нет доступных обновлений для отчёта с кодом FAS.JKH.OPEN.INFO.BALANCE.VO!","Информация"]

{"sheet":"Титульный","index":5,"n_rows":47,"n_cols":6,"rows_kept":47,"cut":false,"hidden":false,"merged":[[4,4,4,5]]}
[null,null,null,null,null,30398817]
[]
[]
[null,null,null,null,null,{"$f":"version","v":"Версия 1.0.6"}]
[null,null,null,null,"Информация о показателях финансово-хозяйственной деятельности, об основных потребительских характеристиках регулируемых товаров и услуг, об инвестиционных программах регулируемой организации в сфере водоотведения и (или) очистки сточных вод"]
[]
[null,null,null,null,"Субъект РФ","Самарская область"]
[]
[null,null,null,null,"Публикация2","На сайте регулирующего органа"]
[]
[null,null,null,null,"Отсутствует Интернет в границах территории МО, где организация осуществляет регулируемые виды деятельности","нет"]
[]
[null,null,null,null,"Тип отчета","первичное раскрытие информации"]
[null,null,null,null,"Дата внесения изменений в информацию, подлежащую раскрытию","27.04.2021"]
[]
[null,null,null,null,"Применяется дифференциация тарифа по централизованным системам водоотведения?"]
[null,null,null,null,"Информация по скольким централизованным системам водоотведения будет заполнена в шаблоне?"]
[]
[]
[null,null,2020,null,"Отчётный период (год)",2020]
[]
[]
[null,null,null,null,"Является ли данное юридическое лицо подразделением (филиалом) другой организации","нет"]
[]
[]
[null,null,null,null,"Наименование организации","АО «ПО КХ г.о. Тольятти»"]
[null,null,null,null,"Наименование филиала"]
[null,null,null,null,"ИНН","6324014124"]
[null,null,null,null,"КПП","632401001"]
[null,null,null,null,"Вид деятельности"]
[]
[null,null,null,null,"Регулируемая организация осуществляет сдачу годового бухгалтерского баланса в налоговые органы","да"]
[null,null,null,null,"Дата направления годового бухгалтерского баланса в налоговые органы","25.03.2021"]
[]
[null,null,null,null,"Превышает ли выручка от регулируемой деятельности 80% совокупной выручки за отчетный год","нет"]
[]
[null,null,null,null,"Организация выполняет инвестиционную программу","нет"]
[null,null,null,null,"Дифференциация по территориям и системам коммунальной инфраструктуры применяется для инвестиционных программ","нет"]
[]
[null,null,null,null,"Почтовый адрес регулируемой организации","445035, Самарская обл., г.о. Тольятти, ул. Комсомольская, д. 92, Литера АА1"]
[null,null,null,null,"Фамилия, имя, отчество руководителя","Маркелов Олег Николаевич"]
[]
[null,null,null,null,null,"Ответственный за составление формы"]
[null,null,null,null,"Фамилия, имя, отчество","Славкина Оксана Евгеньевна"]
[null,null,null,null,"Должность","старший экономист ПЭО"]
[null,null,null,null,"(код) номер телефона","(8482) 772-573"]
[null,null,null,null,"e-mail","slavkina.pokh@yandex.ru"]

{"sheet":"Территории","index":6,"n_rows":17,"n_cols":18,"rows_kept":17,"cut":false,"hidden":false,"merged":[[12,7,14,7],[11,2,15,2],[11,3,15,3],[11,4,15,4],[12,5,14,5],[12,6,14,6],[8,5,8,6],[8,8,8,9],[9,5,9,6],[9,8,9,9],[3,3,3,7],[5,3,5,4],[5,5,5,6],[7,3,7,4],[7,5,7,7],[7,8,7,11],[6,4,6,11]]}
[null,null,null,null,null,null,null,null,null,null,"МО","ОКТМО","МР"]
[]
[]
[null,null,null,"Перечень муниципальных районов и муниципальных образований (территорий оказания услуг)"]
[]
[null,null,null,null,null,"да"]
[]
[null,null,null,"Территория оказания услуг",null,"Муниципальный район",null,null,"Муниципальное образование"]
[null,null,null,"№ п/п","Наименование","№ п/п",null,"Наименование","№ п/п",null,"Наименование","ОКТМО"]
[null,null,null,"1","2","3",null,"4","5",null,"6","7"]
[null,null,null,0,null,"",null,null,"",null,null,null,"размерженный МР",null,null,"флаг используемости территории на листе Перечень тарифов","копия территорий","МР (ОКТМО)"]
[null,"auto",null,1,"городской округ Тольятти, городской округ Тольятти (36740000);","",0,null,"","0",null,null,{"$f":"mergeValue(H12)","v":0},null,null,{"$f":"IF(ISERROR(MATCH(MID(Q12,1,250),MID(note_ter,1,250),0)),\"n\",\"y\")","v":"n"},"городской округ Тольятти, городской округ Тольятти (36740000);",{"$f":"K12&\"(\"&L12&\")\"","v":"()"}]
[null,"auto",null,null,null,"",1,"городской округ Тольятти","","0",null,null,{"$f":"mergeValue(H13)","v":"городской округ Тольятти"},null,null,null,null,{"$f":"K13&\"(\"&L13&\")\"","v":"()"}]
[null,"auto",null,null,null,null,null,null,"",1,"городской округ Тольятти","36740000",{"$f":"mergeValue(H14)","v":"городской округ Тольятти"},null,null,null,null,{"$f":"K14&\" (\"&L14&\")\"","v":"городской округ Тольятти (36740000)"}]
[null,null,null,null,null,null,null,null,"",null,""]
[null,null,null,null,null,"","","",""]
[null,"man",null,null,"","",null,null,"",null,null,null,null,null,null,null,"Добавить территорию оказания услуг"]

{"sheet":"Дифференциация","index":7,"n_rows":26,"n_cols":26,"rows_kept":26,"cut":false,"hidden":false,"merged":[[21,9,22,9],[17,9,17,12],[19,6,19,7],[19,10,19,11],[18,10,18,11],[18,6,18,7],[24,2,25,2],[11,1,11,3],[12,1,12,3],[21,4,23,4],[21,5,23,5],[21,3,23,3],[17,5,17,8],[21,6,22,6],[21,7,22,7],[21,8,22,8],[17,0,18,0],[17,3,17,4],[3,3,3,8],[4,3,4,8],[7,4,7,5],[8,1,8,3],[5,0,6,5],[7,1,7,3],[8,4,8,5],[9,1,9,3],[9,4,9,5],[13,1,13,3],[10,4,10,5],[10,1,10,3]]}
[]
[]
[]
[null,null,null,{"$f":"Титульный!E5","v":"Информация о показателях финансово-хозяйственной деятельности, об основных потребительских характеристиках регулируемых товаров и услуг, об инвестиционных программах регулируемой организации в сфере водоотведения и (или) очистки сточных вод"}]
[null,null,null,{"$f":"IF(org=0,\"Не определено\",org)","v":"АО «ПО КХ г.о. Тольятти»"}]
[]
[]
[]
[]
[]
[]
[]
[]
[]
[]
[]
[]
[null,null,null,"Вид деятельности",null,"Дифференциация по территориям оказания услуг",null,null,null,"Дифференциация по централизованным системам коммунальной инфраструктуры"]
[null,null,null,"№ п/п","Наименование","да/нет","№ п/п",null,"Наименование","да/нет","№ п/п",null,"Наименование"]
[null,null,null,"1","2","3","4",null,"5","6","7",null,"8"]
[]
[null,null,null,"1","Водоотведение","нет",null,1,null,"нет","","1","",null,null,null,null,null,null,null,null,null,null,4189714,"a",1705000]
[null,null,null,null,null,null,null,null,null,null,"",null,""]
[null,null,null,null,null,null,null,null,"",null,""]
[null,null,null,null,"",null,null,null,null,null,""]
[null,null,null,null,null,null,null,null,null,null,""]

{"sheet":"Форма 1.0.1 | Форма 3.5.1","index":8,"n_rows":20,"n_cols":7,"rows_kept":20,"cut":false,"hidden":false,"merged":[[19,4,19,5],[4,3,4,6],[5,3,5,6],[7,3,7,6],[8,3,8,5],[8,6,9,6]]}
[null,null,null,null,null,null,4]
[]
[]
[]
[null,null,null,"Форма 1.0.1 Основные параметры раскрываемой информации 1"]
[null,null,null,{"$f":"IF(org=0,\"Не определено\",org)","v":"АО «ПО КХ г.о. Тольятти»"}]
[]
[null,null,22,"Форма 1.0.1"]
[null,null,null,"Параметры формы",null,null,"Описание параметров формы"]
["\\",null,null,"№ п/п",null,"Информация"]
[null,null,null,"1",2,3,4]
[null,null,null,1,"Дата заполнения/внесения изменений",{"$f":"IF(form_up_date=\"\",\"\",form_up_date)","v":"27.04.2021"},"Указывается календарная дата первичного заполнения или внесения изменений в форму в виде «ДД.ММ.ГГГГ»."]
[null,null,null,"2.1","Наименование централизованной системы коммунальной инфраструктуры","наименование отсутствует","Указывается наименование централизованной системы холодного водоснабжения/горячего водоснабжения/водоотведения/теплоснабжения, к которой относится размещаемая информация.\nВ случае наличия нескольких централизованных систем коммунальной инфраструктуры, информация по каждой из них указывается в отдельной строке. "]
[null,null,null,"3.1","Наименование регулируемого вида деятельности","Водоотведение","Указывается наименование вида регулируемой деятельности."]
[null,null,null,"4.1","Территория оказания услуги по регулируемому виду деятельности","x"]
[null,null,null,{"$f":"D15&\".1\"","v":"4.1.1"},"Субъект РФ",{"$f":"IF(region_name=\"\",\"\",region_name)","v":"Самарская область"},"Указывается наименование субъекта Российской Федерации"]
[null,null,null,"4.1.1.1","муниципальный район","городской округ Тольятти","Указывается наименование муниципального района, на территории которого организация оказывает услуги по регулируемому виду деятельности."]
[null,null,null,"4.1.1.1.1","муниципальное образование","городской округ Тольятти (36740000)","Указывается наименование и код муниципального района, муниципального образования в соответствии с Общероссийским классификатором территорий муниципальных образований (далее - ОКТМО), входящего в муниципальный район, на территории которого организация оказывает услуги по регулируемому виду деятельности.\nВ случае оказания услуг по регулируемому виду деятельности на территории нескольких муниципальных районов (муниципальных образований) данные по каждому их них указываются в отдельной строке."]
[]
[null,null,null,null,"  1 Информация по данной форме публикуется при раскрытии информации по каждой из форм."]

{"sheet":"Форма 3.5.1","index":9,"n_rows":85,"n_cols":16,"rows_kept":85,"cut":false,"hidden":false,"merged":[[40,4,41,4],[40,5,41,5],[8,3,8,5],[11,7,13,7],[80,4,80,6],[12,4,13,4],[12,3,13,3],[12,5,13,5],[11,3,11,6],[35,3,36,3],[35,5,36,5],[37,3,38,3],[37,5,38,5],[40,3,41,3]]}
[null,null,null,null,null,null,4]
[null,null,null,null,null,"тыс. руб.",null,"Указываются прочие расходы, которые подлежат отнесению на регулируемые виды деятельности в соответствии с законодательством в сфере водоснабжения и водоотведения."]
[]
[null,null,null,null,null,"%",null,"Указывается показатель использования по производственному объекту как процент объем перекачки по отношению к пиковому дню отчетного года."]
[]
[]
[null,null,null,null,null,null,null,4]
[]
[null,null,null,"Информация об основных показателях финансово-хозяйственной деятельности регулируемой организации, включая структуру основных производственных затрат (в части регулируемого вида деятельности)"]
[]
[null,null,null,null,null,null,22]
[null,null,null,"Параметры формы",null,null,null,"Описание параметров формы"]
[null,null,null,"№ п/п","Наименование параметра","Единица измерения","Вид деятельности:\r\n  - Водоотведение\r\n\r\nТерритория оказания услуг:\r\n  - без дифференциации\r\n\r\nЦентрализованная система водоотведения:\r\n  - наименование отсутствует"]
[null,null,null,null,null,null,"Информация"]
[null,null,null,"1","2","3",{"$f":"G1","v":4}]
[null,null,null,"1","Дата сдачи годового бухгалтерского баланса в налоговые органы","х",{"$f":"IF(buhg_flag=\"да\",IF(dateBuhg=\"\",\"Не указана\",dateBuhg),\"Не осуществлялась\")","v":"25.03.2021"},"Указывается календарная дата сдачи бухгалтерского баланса в налоговые органы в случае, если организация сдает бухгалтерский баланс в налоговые органы по виду регулируемой деятельности, в отношении которого размещаются данные. Дата указывается в виде «ДД.ММ.ГГГГ»."]
[null,null,null,"2","Выручка от регулируемой деятельности по виду деятельности","тыс. руб.",8478.82,"Указывается выручка от регулируемой деятельности по виду деятельности в сфере водоотведения."]
[null,null,null,"3","Себестоимость производимых товаров (оказываемых услуг) по регулируемому виду деятельности, включая:","тыс. руб.",{"$f":"SUM(G19:G20,G23:G30,G33,G36,G38,G40)","v":50271.697000000007},"Указывается суммарная себестоимость производимых товаров."]
[null,null,null,"3.1","Расходы на оплату услуг по приему, транспортировке и очистке сточных вод другими организациями","тыс. руб.",787.08]
[null,null,null,"3.2","Расходы на покупаемую электрическую энергию (мощность), используемую в технологическом процессе:","тыс. руб.",723.55]
[null,null,null,"3.2.1","Средневзвешенная стоимость 1 кВт.ч (с учетом мощности)","руб.",{"$f":"G20/G22","v":5.9571052198254568}]
[null,null,null,"3.2.2","Объем приобретаемой электрической энергии","тыс. кВт·ч",121.46]
[null,null,null,"3.3","Расходы на хим. реагенты, используемые в технологическом процессе","тыс. руб.",0]
[null,null,null,"3.4","Расходы на оплату труда основного производственного персонала","тыс. руб.",13298.39]
[null,null,null,"3.5","Отчисления на социальные нужды основного производственного персонала","тыс. руб.",4055.31]
[null,null,null,"3.6","Расходы на оплату труда административно-управленческого персонала","тыс. руб.",13419.6]
[null,null,null,"3.7","Отчисления на социальные нужды административно-управленческого персонала","тыс. руб.",3462.86]
[null,null,null,"3.8","Расходы на амортизацию основных производственных средств","тыс. руб.",1335.48]
[null,null,null,"3.9","Расходы на аренду имущества, используемого для осуществления регулируемого вида деятельности","тыс. руб.",3057.7]
[null,null,null,"3.10","Общепроизводственные расходы, в том числе:","тыс. руб.",0,"Указывается общая сумма общепроизводственных расходов."]
[null,null,null,"3.10.1","Расходы на текущий ремонт","тыс. руб.",0,"Указываются расходы на текущий ремонт, отнесенные к общепроизводственным расходам."]
[null,null,null,"3.10.2","Расходы на капитальный ремонт","тыс. руб.",0,"Указываются расходы на капитальный ремонт, отнесенные к общепроизводственным расходам"]
[null,null,null,"3.11","Общехозяйственные расходы, в том числе:","тыс. руб.",0,"Указывается общая сумма общехозяйственных расходов."]
[null,null,null,"3.11.1","Расходы на текущий ремонт","тыс. руб.",0,"Указываются расходы на текущий ремонт, отнесенные к общехозяйственным расходам."]
[null,null,null,"3.11.2","Расходы на капитальный ремонт","тыс. руб.",0,"Указываются расходы на капитальный ремонт, отнесенные к общехозяйственным расходам."]
[null,null,null,"3.12","Расходы на капитальный и текущий ремонт основных производственных средств","тыс. руб.",2458.7600000000002]
[null,null,null,null,"Информация об объемах товаров и услуг, их стоимости и способах приобретения у тех организаций, сумма оплаты услуг которых превышает 20 процентов суммы расходов по указанной статье расходов",null,"отсутствует",null,null,null,{"$f":"nerr(MATCH(\"есть\",List01_flag_index_1,0))","v":0}]
[null,null,null,"3.13","Расходы на услуги производственного характера, оказываемые по договорам с организациями на проведение регламентных работ в рамках технологического процесса","тыс. руб.",919.8]
[null,null,null,null,"Информация об объемах товаров и услуг, их стоимости и способах приобретения у тех организаций, сумма оплаты услуг которых превышает 20 процентов суммы расходов по указанной статье расходов",null,"отсутствует",null,null,null,{"$f":"nerr(MATCH(\"есть\",List01_flag_index_2,0))","v":0}]
[null,null,null,"3.16","Прочие расходы, которые подлежат отнесению на регулируемые виды деятельности, в том числе:","тыс. руб.",{"$f":"SUM(G41:G65)","v":6753.1670000000004},"Указывается общая сумма прочих расходов, которые подлежат отнесению на регулируемые виды деятельности в соответствии с законодательством в сфере водоснабжения и водоотведения."]
[null,null,null,"3.16.0"]
[null,null,null,null,null,null,null,null,null,null,null,null,null,null,null,"SUM_CALC"]
[null,null,"О","3.16.1","материалы и малоценные основные средства","тыс. руб.",902.5,"Указываются прочие расходы, которые подлежат отнесению на регулируемые виды деятельности в соответствии с законодательством в сфере водоснабжения и водоотведения."]
[null,null,"О","3.16.2","горюче-смазочные материалы","тыс. руб.",705.18,"Указываются прочие расходы, которые подлежат отнесению на регулируемые виды деятельности в соответствии с законодательством в сфере водоснабжения и водоотведения."]
[null,null,"О","3.16.3","контроль качества сточных вод","тыс. руб.",204.85,"Указываются прочие расходы, которые подлежат отнесению на регулируемые виды деятельности в соответствии с законодательством в сфере водоснабжения и водоотведения."]
[null,null,"О","3.16.4","услуги сязи и интернет","тыс. руб.",154.09,"Указываются прочие расходы, которые подлежат отнесению на регулируемые виды деятельности в соответствии с законодательством в сфере водоснабжения и водоотведения."]
[null,null,"О","3.16.5","информационные услуги","тыс. руб.",422.24,"Указываются прочие расходы, которые подлежат отнесению на регулируемые виды деятельности в соответствии с законодательством в сфере водоснабжения и водоотведения."]
[null,null,"О","3.16.6","арендная плата, не связанная с арендой ЦСВ","тыс. руб.",42.28,"Указываются прочие расходы, которые подлежат отнесению на регулируемые виды деятельности в соответствии с законодательством в сфере водоснабжения и водоотведения."]
[null,null,"О","3.16.7","служебные командировки","тыс. руб.",44.84,"Указываются прочие расходы, которые подлежат отнесению на регулируемые виды деятельности в соответствии с законодательством в сфере водоснабжения и водоотведения."]
[null,null,"О","3.16.8","обучение персонала","тыс. руб.",43.78,"Указываются прочие расходы, которые подлежат отнесению на регулируемые виды деятельности в соответствии с законодательством в сфере водоснабжения и водоотведения."]
[null,null,"О","3.16.9","охрана труда и мед. осмотры","тыс. руб.",110.56,"Указываются прочие расходы, которые подлежат отнесению на регулируемые виды деятельности в соответствии с законодательством в сфере водоснабжения и водоотведения."]
[null,null,"О","3.16.10","страхование производственных объектов","тыс. руб.",63.68,"Указываются прочие расходы, которые подлежат отнесению на регулируемые виды деятельности в соответствии с законодательством в сфере водоснабжения и водоотведения."]
[null,null,"О","3.16.11","юридические услуги","тыс. руб.",2.68,"Указываются прочие расходы, которые подлежат отнесению на регулируемые виды деятельности в соответствии с законодательством в сфере водоснабжения и водоотведения."]
[null,null,"О","3.16.12","услуги сторонних организаций по обеспечению безопасности функционирования объектов ЦСВ","тыс. руб.",376.29,"Указываются прочие расходы, которые подлежат отнесению на регулируемые виды деятельности в соответствии с законодательством в сфере водоснабжения и водоотведения."]
[null,null,"О","3.16.13","услуги на производственные цели, питьевая вода","тыс. руб.",2.84,"Указываются прочие расходы, которые подлежат отнесению на регулируемые виды деятельности в соответствии с законодательством в сфере водоснабжения и водоотведения."]
[null,null,"О","3.16.14","услуги на производственные цели, водоотведение","тыс. руб.",4.62,"Указываются прочие расходы, которые подлежат отнесению на регулируемые виды деятельности в соответствии с законодательством в сфере водоснабжения и водоотведения."]
[null,null,"О","3.16.15","другие производственные расходы","тыс. руб.",112.3,"Указываются прочие расходы, которые подлежат отнесению на регулируемые виды деятельности в соответствии с законодательством в сфере водоснабжения и водоотведения."]
[null,null,"О","3.16.16","плата за сброс сточных вод и згрязняющих веществ","тыс. руб.",0.27,"Указываются прочие расходы, которые подлежат отнесению на регулируемые виды деятельности в соответствии с законодательством в сфере водоснабжения и водоотведения."]
[null,null,"О","3.16.17","прочие административные расходы (плата за коммунальные услуги, затраты на канцелярские товары)","тыс. руб.",788.702,"Указываются прочие расходы, которые подлежат отнесению на регулируемые виды деятельности в соответствии с законодательством в сфере водоснабжения и водоотведения."]
[null,null,"О","3.16.18","общехозяйственные расходы (за исключением административных): расходы на содержание  зданий, территорий, расходы на исследования и разработки, проведение экспертиз, и пр.)","тыс. руб.",1128.71,"Указываются прочие расходы, которые подлежат отнесению на регулируемые виды деятельности в соответствии с законодательством в сфере водоснабжения и водоотведения."]
[null,null,"О","3.16.19","плата за негативное воздействие на окружающую среду","тыс. руб.",4.4800000000000004,"Указываются прочие расходы, которые подлежат отнесению на регулируемые виды деятельности в соответствии с законодательством в сфере водоснабжения и водоотведения."]
[null,null,"О","3.16.20","амортизация автотранспорта","тыс. руб.",1067.6300000000001,"Указываются прочие расходы, которые подлежат отнесению на регулируемые виды деятельности в соответствии с законодательством в сфере водоснабжения и водоотведения."]
[null,null,"О","3.16.21","налог на имущество организаций","тыс. руб.",538.28300000000002,"Указываются прочие расходы, которые подлежат отнесению на регулируемые виды деятельности в соответствии с законодательством в сфере водоснабжения и водоотведения."]
[null,null,"О","3.16.22","транспортный налог","тыс. руб.",32.362000000000002,"Указываются прочие расходы, которые подлежат отнесению на регулируемые виды деятельности в соответствии с законодательством в сфере водоснабжения и водоотведения."]
[null,null,null,null,"Добавить прочие расходы",null,null,"В случае наличия нескольких видов прочих расходов информация указывается в отдельных строках."]
[null,null,null,"4","Чистая прибыль, полученная от регулируемого вида деятельности, в том числе:","тыс. руб.",0,"Указывается общая сумма чистой прибыли, полученной от регулируемого вида деятельности."]
[null,null,null,"4.1","Размер расходования чистой прибыли на финансирование мероприятий, предусмотренных инвестиционной программой регулируемой организации","тыс. руб.",0]
[null,null,null,"5","Изменение стоимости основных фондов, в том числе:","тыс. руб.",{"$f":"G69+G72","v":7293.259},"Указывается общее изменение стоимости основных фондов."]
[null,null,null,"5.1","Изменение стоимости основных фондов за счет их ввода в эксплуатацию (вывода из эксплуатации)","тыс. руб.",{"$f":"G70+G71","v":7293.259},"Указываются общее изменение стоимости основных фондов за счет их ввода в эксплуатацию и вывода из эксплуатации."]
[null,null,null,"5.1.1","Изменение стоимости основных фондов за счет их ввода в эксплуатацию","тыс. руб.",7293.259,"Указываются изменение стоимости основных фондов за счет их ввода в эксплуатацию."]
[null,null,null,"5.1.2","Изменение стоимости основных фондов за счет их вывода в эксплуатацию","тыс. руб.",0,"Указываются изменение стоимости основных фондов за счет их вывода из эксплуатации."]
[null,null,null,"5.2","Изменение стоимости основных фондов за счет их переоценки","тыс. руб.",0]
[null,null,null,"6","Валовая прибыль (убытки) от продажи товаров и услуг по регулируемому виду деятельности","тыс. руб.",-41792.879999999997]
[null,null,null,"7","Годовая бухгалтерская отчетность, включая бухгалтерский баланс и приложения к нему","-",null,"Указывается ссылка на документ, предварительно загруженный в хранилище файлов ФГИС ЕИАС.\nРаскрывается регулируемой организацией, выручка от регулируемых видов деятельности которой превышает 80 процентов совокупной выручки за отчетный год."]
[null,null,null,"8","Объем сточных вод, принятых от потребителей оказываемых услуг","тыс. куб. м",1816.1389999999999]
[null,null,null,"9","Объем сточных вод, принятых от других регулируемых организаций в сфере водоотведения и (или) очистки сточных вод","тыс. куб. м",0]
[null,null,null,"10","Объем сточных вод, пропущенных через очистные сооружения","тыс. куб. м",1816.1389999999999]
[null,null,null,"11","Среднесписочная численность основного производственного персонала","человек",37.299999999999997]
[]
[]
[]
[]
[]
[]
[null,null,null,null,null,null,{"$f":"IF(G17-G18 <>G73,\"WARNING\",\"\")","v":"WARNING"}]

{"sheet":"Форма 1.0.1 | Форма 3.5.2","index":10,"n_rows":20,"n_cols":7,"rows_kept":20,"cut":false,"hidden":true,"merged":[[19,4,19,5],[4,3,4,6],[5,3,5,6],[7,3,7,6],[8,3,8,5],[8,6,9,6]]}
[null,null,null,null,null,null,4]
[]
[]
[]
[null,null,null,"Форма 1.0.1 Основные параметры раскрываемой информации 1"]
[null,null,null,{"$f":"IF(org=0,\"Не определено\",org)","v":"АО «ПО КХ г.о. Тольятти»"}]
[]
[null,null,22,"Форма 1.0.1"]
[null,null,null,"Параметры формы",null,null,"Описание параметров формы"]
["\\",null,null,"№ п/п",null,"Информация"]
[null,null,null,"1",2,3,4]
[null,null,null,1,"Дата заполнения/внесения изменений",{"$f":"IF(form_up_date=\"\",\"\",form_up_date)","v":"27.04.2021"},"Указывается календарная дата первичного заполнения или внесения изменений в форму в виде «ДД.ММ.ГГГГ»."]
[null,null,null,"2.1","Наименование централизованной системы коммунальной инфраструктуры","наименование отсутствует","Указывается наименование централизованной системы холодного водоснабжения/горячего водоснабжения/водоотведения/теплоснабжения, к которой относится размещаемая информация.\nВ случае наличия нескольких централизованных систем коммунальной инфраструктуры, информация по каждой из них указывается в отдельной строке. "]
[null,null,null,"3.1","Наименование регулируемого вида деятельности","Водоотведение","Указывается наименование вида регулируемой деятельности."]
[null,null,null,"4.1","Территория оказания услуги по регулируемому виду деятельности","x"]
[null,null,null,{"$f":"D15&\".1\"","v":"4.1.1"},"Субъект РФ",{"$f":"IF(region_name=\"\",\"\",region_name)","v":"Самарская область"},"Указывается наименование субъекта Российской Федерации"]
[null,null,null,"4.1.1.1","муниципальный район","городской округ Тольятти","Указывается наименование муниципального района, на территории которого организация оказывает услуги по регулируемому виду деятельности."]
[null,null,null,"4.1.1.1.1","муниципальное образование","городской округ Тольятти (36740000)","Указывается наименование и код муниципального района, муниципального образования в соответствии с Общероссийским классификатором территорий муниципальных образований (далее - ОКТМО), входящего в муниципальный район, на территории которого организация оказывает услуги по регулируемому виду деятельности.\nВ случае оказания услуг по регулируемому виду деятельности на территории нескольких муниципальных районов (муниципальных образований) данные по каждому их них указываются в отдельной строке."]
[]
[null,null,null,null,"  1 Информация по данной форме публикуется при раскрытии информации по каждой из форм."]

{"sheet":"Форма 3.5.2","index":11,"n_rows":18,"n_cols":34,"rows_kept":18,"cut":false,"hidden":true,"merged":[[11,28,17,28],[12,4,12,15],[12,20,14,20],[12,21,14,21],[15,4,15,15],[15,20,17,20],[15,21,17,21],[4,3,4,10],[22,4,22,17],[6,18,7,18],[6,3,6,17],[7,4,7,5],[7,7,7,8],[7,11,7,12],[11,3,17,3],[11,4,11,17]]}
[]
[]
[]
[]
[null,null,null,"Информация о расходах на капитальный и текущий ремонт основных производственных средств, расходах на услуги производственного характера"]
[]
[null,null,null,"Параметры формы",null,null,null,null,null,null,null,null,null,null,null,null,null,null,"Описание параметров формы"]
[null,null,null,"№ п/п","№ п/п",null,"Наименование параметра","№ п/п",null,"Способ приобретения","Реквизиты договора","№ п/п",null,"Наименование товара/услуги","Объем приобретенных товаров, услуг","Единица измерения объема","Стоимость, тыс. руб.","Доля расходов, % (от суммы расходов по указанной статье)"]
[null,null,null,"1",null,"2","3",null,"4","5","6",null,"7","8","9","10","11","12"]
[]
[null,null,null,"0"]
[22,null,null,"1","Вид деятельности:\r\n  - Водоотведение\r\n\r\nТерритория оказания услуг:\r\n  - без дифференциации\r\n\r\nЦентрализованная система водоотведения:\r\n  - наименование отсутствует",null,null,null,null,null,null,null,null,null,null,null,null,null,null,null,null,null,null,null,null,null,null,null,null,null,"",null,"NOTSHOW",3]
[null,null,null,null,"Информация об объемах товаров и услуг, их стоимости и способах приобретения у организаций, в том числе:",null,null,null,null,null,null,null,null,null,null,null,{"$f":"SUMIF(T14:T15,\"i\",Q14:Q15)","v":0},null,"Указывается сумма стоимости приобретения товаров и услуг у организаций, сумма оплаты услуг которых превышает 20% суммы расходов на капитальный и текущий ремонт основных производственных средства","i",1,{"$f":"INDEX(List01_flag_index_1,1,MATCH(A12,List01_NumberColumns,0))","v":"отсутствует"}]
[null,null,null,null,null,0]
[null,null,null,null,"","","",""]
[null,null,null,null,"Расходы на услуги производственного характера, выполняемые по договорам с организациями на проведение регламентных работ в рамках технологического процесса. Из них товары и услуги, приобретенные у организаций, сумма оплаты услуг которых превышает 20% суммы расходов по статье:",null,null,null,null,null,null,null,null,null,null,null,{"$f":"SUMIF(T17:T18,\"i\",Q17:Q18)","v":0},null,"Указывается сумма стоимости приобретения товаров и услуг у организаций, сумма оплаты услуг которых превышает 20% суммы расходов на капитальный и текущий ремонт основных производственных средства","i",2,{"$f":"INDEX(List01_flag_index_2,1,MATCH(A12,List01_NumberColumns,0))","v":"отсутствует"}]
[null,null,null,null,null,0]
[null,null,null,null,"","","",""]

{"sheet":"Форма 1.0.1 | Форма 3.6","index":12,"n_rows":20,"n_cols":7,"rows_kept":20,"cut":false,"hidden":false,"merged":[[19,4,19,5],[4,3,4,6],[5,3,5,6],[7,3,7,6],[8,3,8,5],[8,6,9,6]]}
[null,null,null,null,null,null,4]
[]
[]
[]
[null,null,null,"Форма 1.0.1 Основные параметры раскрываемой информации 1"]
[null,null,null,{"$f":"IF(org=0,\"Не определено\",org)","v":"АО «ПО КХ г.о. Тольятти»"}]
[]
[null,null,22,"Форма 1.0.1"]
[null,null,null,"Параметры формы",null,null,"Описание параметров формы"]
["\\",null,null,"№ п/п",null,"Информация"]
[null,null,null,"1",2,3,4]
[null,null,null,1,"Дата заполнения/внесения изменений",{"$f":"IF(form_up_date=\"\",\"\",form_up_date)","v":"27.04.2021"},"Указывается календарная дата первичного заполнения или внесения изменений в форму в виде «ДД.ММ.ГГГГ»."]
[null,null,null,"2.1","Наименование централизованной системы коммунальной инфраструктуры","наименование отсутствует","Указывается наименование централизованной системы холодного водоснабжения/горячего водоснабжения/водоотведения/теплоснабжения, к которой относится размещаемая информация.\nВ случае наличия нескольких централизованных систем коммунальной инфраструктуры, информация по каждой из них указывается в отдельной строке. "]
[null,null,null,"3.1","Наименование регулируемого вида деятельности","Водоотведение","Указывается наименование вида регулируемой деятельности."]
[null,null,null,"4.1","Территория оказания услуги по регулируемому виду деятельности","x"]
[null,null,null,{"$f":"D15&\".1\"","v":"4.1.1"},"Субъект РФ",{"$f":"IF(region_name=\"\",\"\",region_name)","v":"Самарская область"},"Указывается наименование субъекта Российской Федерации"]
[null,null,null,"4.1.1.1","муниципальный район","городской округ Тольятти","Указывается наименование муниципального района, на территории которого организация оказывает услуги по регулируемому виду деятельности."]
[null,null,null,"4.1.1.1.1","муниципальное образование","городской округ Тольятти (36740000)","Указывается наименование и код муниципального района, муниципального образования в соответствии с Общероссийским классификатором территорий муниципальных образований (далее - ОКТМО), входящего в муниципальный район, на территории которого организация оказывает услуги по регулируемому виду деятельности.\nВ случае оказания услуг по регулируемому виду деятельности на территории нескольких муниципальных районов (муниципальных образований) данные по каждому их них указываются в отдельной строке."]
[]
[null,null,null,null,"  1 Информация по данной форме публикуется при раскрытии информации по каждой из форм."]

{"sheet":"Форма 3.6","index":13,"n_rows":34,"n_cols":8,"rows_kept":34,"cut":false,"hidden":false,"merged":[[2,3,2,5],[6,7,8,7],[8,0,8,1],[7,3,8,3],[7,4,8,4],[7,5,8,5],[6,3,6,6]]}
[null,null,null,null,null,null,4,5]
[]
[null,null,null,"Информация об основных потребительских характеристиках регулируемых товаров и услуг регулируемой организации и их соответствии установленным требованиям"]
[]
[]
[null,null,null,null,null,null,22]
[null,null,null,"Параметры формы",null,null,null,"Описание параметров формы"]
[null,null,null,"№ п/п","Информация, подлежащая раскрытию","Единица измерения","Вид деятельности:\r\n  - Водоотведение\r\n\r\nТерритория оказания услуг:\r\n  - без дифференциации\r\n\r\nЦентрализованная система водоотведения:\r\n  - наименование отсутствует"]
[null,null,null,null,null,null,"Информация"]
[null,null,null,"1","2","3",{"$f":"G1","v":4}]
[null,null,null,1,"Показатель аварийности на канализационных сетях","ед. на км",1.32,"Указывается количество любых нарушений на канализационных сетях."]
[null,null,null,"2","Количество засоров на самотечных сетях","ед. на км",103,"Указывается количество засоров на самотечных сетях."]
[null,null,null,"3","Общее количество проведенных проб на сбросе очищенных (частично очищенных) сточных вод:","ед.",51,"Указывается суммарное количество проведенных проб на сбросе очищенных вод."]
[null,null,null,"3.1","взвешенные вещества","ед.",8]
[null,null,null,"3.2","БПК5","ед.",8]
[null,null,null,"3.3","аммоний-ион","ед.",8]
[null,null,null,"3.4","нитрит-анион","ед.",8]
[null,null,null,"3.5","фосфаты (по Р)","ед.",0]
[null,null,null,"3.6","нефтепродукты","ед.",8]
[null,null,null,"3.7","микробиология","ед.",3]
[null,null,null,"4","Количество проведенных проб, выявивших несоответствие очищенных (частично очищенных) сточных вод санитарным нормам (предельно допустимой концентрации) на сбросе очищенных (частично очищенных) сточных вод:","ед.",13,"Указывается суммарное количество проведенных проб, выявивших несоответствие очищенных сточных вод санитарным нормам (предельно допустимой концентрации) на сбросе очищенных (частично очищенных) сточных вод."]
[null,null,null,"4.1","взвешенные вещества","ед.",3]
[null,null,null,"4.2","БПК5","ед.",2]
[null,null,null,"4.3","аммоний-ион","ед.",0]
[null,null,null,"4.4","нитрит-анион","ед.",0]
[null,null,null,"4.5","фосфаты (по Р)","ед.",0]
[null,null,null,"4.6","нефтепродукты","ед.",5]
[null,null,null,"4.7","микробиология","ед.",0]
[null,null,null,"5","Доля исполненных в срок договоров о подключении","%",100,"Указывается процент общего количества заключенных договоров о подключении."]
[null,null,null,"6","Средняя продолжительность рассмотрения заявлений о подключении","дн.",3]
[null,null,null,"7","О результатах технического обследования централизованных систем водоотведения и (или) очистки сточных вод, в том числе:","x","https://portal.eias.ru/Portal/DownloadPage.aspx?type=12&guid=e42e8805-0ba4-4d13-b652-37b4eb3f129f","Указывается ссылка на документ, предварительно загруженный в хранилище файлов ФГИС ЕИАС."]
[null,null,null,"7.1","о фактических значениях показателей технико-экономического состояния централизованных систем водоотведения и (или) очистки сточных вод, включая значения показателей физического износа и энергетической эффективности объектов централизованных систем водоотведения и (или) очистки сточных вод.","x","https://portal.eias.ru/Portal/DownloadPage.aspx?type=12&guid=861258ea-072b-4f1e-b3fb-350b5a11617e","Указывается ссылка на документ, предварительно загруженный в хранилище файлов ФГИС ЕИАС."]
[null,null,null,"8","О нормативах допустимых сбросов веществ и микроорганизмов в водные объекты, установленных для объектов централизованных систем водоотведения, эксплуатируемых регулируемой организацией, в соответствии с законодательством Российской Федерации об охране окружающей среды (о лимитах на сбросы загрязняющих веществ и микроорганизмов, установленных для объектов централизованных систем водоотведения, эксплуатируемых регулируемой организацией, в соответствии с законодательством Российской Федерации об охране окружающей среды)","x","https://portal.eias.ru/Portal/DownloadPage.aspx?type=12&guid=19741b4e-9c84-4745-b703-888b1d729cdb","Указывается ссылка на документ, предварительно загруженный в хранилище файлов ФГИС ЕИАС."]
[null,null,null,"9","О показателях эффективности удаления загрязняющих веществ очистными сооружениями регулируемых организаций","x","https://portal.eias.ru/Portal/DownloadPage.aspx?type=12&guid=ba8e636b-b479-45df-81f1-23b419b4bab3","Указывается ссылка на документ, предварительно загруженный в хранилище файлов ФГИС ЕИАС."]

{"sheet":"Форма 1.0.1 | Форма 3.7","index":14,"n_rows":20,"n_cols":7,"rows_kept":20,"cut":false,"hidden":true,"merged":[[19,4,19,5],[4,3,4,6],[5,3,5,6],[7,3,7,6],[8,3,8,5],[8,6,9,6]]}
[null,null,null,null,null,null,4]
[]
[]
[]
[null,null,null,"Форма 1.0.1 Основные параметры раскрываемой информации 1"]
[null,null,null,{"$f":"IF(org=0,\"Не определено\",org)","v":"АО «ПО КХ г.о. Тольятти»"}]
[]
[null,null,22,"Форма 1.0.1"]
[null,null,null,"Параметры формы",null,null,"Описание параметров формы"]
["\\",null,null,"№ п/п",null,"Информация"]
[null,null,null,"1",2,3,4]
[null,null,null,1,"Дата заполнения/внесения изменений",{"$f":"IF(form_up_date=\"\",\"\",form_up_date)","v":"27.04.2021"},"Указывается календарная дата первичного заполнения или внесения изменений в форму в виде «ДД.ММ.ГГГГ»."]
[null,null,null,"2.1","Наименование централизованной системы коммунальной инфраструктуры","наименование отсутствует","Указывается наименование централизованной системы холодного водоснабжения/горячего водоснабжения/водоотведения/теплоснабжения, к которой относится размещаемая информация.\nВ случае наличия нескольких централизованных систем коммунальной инфраструктуры, информация по каждой из них указывается в отдельной строке. "]
[null,null,null,"3.1","Наименование регулируемого вида деятельности","Водоотведение","Указывается наименование вида регулируемой деятельности."]
[null,null,null,"4.1","Территория оказания услуги по регулируемому виду деятельности","x"]
[null,null,null,{"$f":"D15&\".1\"","v":"4.1.1"},"Субъект РФ",{"$f":"IF(region_name=\"\",\"\",region_name)","v":"Самарская область"},"Указывается наименование субъекта Российской Федерации"]
[null,null,null,"4.1.1.1","муниципальный район","городской округ Тольятти","Указывается наименование муниципального района, на территории которого организация оказывает услуги по регулируемому виду деятельности."]
[null,null,null,"4.1.1.1.1","муниципальное образование","городской округ Тольятти (36740000)","Указывается наименование и код муниципального района, муниципального образования в соответствии с Общероссийским классификатором территорий муниципальных образований (далее - ОКТМО), входящего в муниципальный район, на территории которого организация оказывает услуги по регулируемому виду деятельности.\nВ случае оказания услуг по регулируемому виду деятельности на территории нескольких муниципальных районов (муниципальных образований) данные по каждому их них указываются в отдельной строке."]
[]
[null,null,null,null,"  1 Информация по данной форме публикуется при раскрытии информации по каждой из форм."]

{"sheet":"Форма 3.7","index":15,"n_rows":81,"n_cols":13,"rows_kept":81,"cut":false,"hidden":true,"merged":[[67,1,71,1],[72,1,76,1],[7,5,8,5],[7,6,8,6],[7,7,8,7],[19,1,21,1],[57,1,59,1],[62,1,66,1],[22,1,24,1],[4,5,4,8],[80,6,80,12],[79,6,79,12],[7,8,7,10],[6,12,8,12],[6,5,6,11]]}
[]
[]
[]
[]
[null,null,null,null,null,"Информация об инвестиционных программах регулируемой организации1"]
[]
[null,null,null,null,null,"Параметры формы",null,null,null,null,null,null,"Описание параметров формы"]
[null,null,null,null,null,"№ п/п","Наименование параметра","Единица измерения"]
[null,null,null,null,null,null,null,null,"Инвестиционная программа в целом","Мероприятие2","Добавить мероприятие"]
[null,null,null,null,null,"1","2","3","4","4.0"]
[null,null,null,null,null,1,"Наименование инвестиционной программы/мероприятия","x"]
[null,null,null,null,null,2,"Дата утверждения инвестиционной программы","x",null,"x",null,null,"Дата утверждения инвестиционной программы указывается в виде «ДД.ММ.ГГГГ»."]
[null,null,null,null,null,"2.1","Дата изменения инвестиционной программы","x",null,"x",null,null,"Дата изменения инвестиционной программы указывается (в случае наличия изменения) в виде «ДД.ММ.ГГГГ»."]
[null,null,null,null,null,"3","Цель инвестиционной программы","x",null,"x",null,null,"Цель инвестиционной программы определяется из перечня: Автоматизация (с уменьшением штата); Уменьшение удельных затрат (повышение коэффициента полезного действия); Уменьшение издержек на производство; Снижение аварийности; Прочее\nВозможен выбор нескольких пунктов."]
[null,null,null,null,null,"4","Наименование уполномоченного органа, утвердившего программу","x",null,"x",null,null,"Указывается уполномоченный в соответствии с законодательством Российской Федерации орган власти, утвердивший инвестиционную программу."]
[null,null,null,null,null,"5","Наименование органа местного самоуправления, согласовавшего инвестиционную программу","x",null,"x"]
[null,null,null,null,null,"6","Срок начала реализации инвестиционной программы/мероприятия","x",null,null,null,null,"Срок начала реализации инвестиционной программы/мероприятия указывается в виде «ДД.ММ.ГГГГ»."]
[null,null,null,null,null,"7","Срок окончания реализации инвестиционной программы/мероприятия","x",null,null,null,null,"Срок окончания реализации инвестиционной программы/мероприятия указывается в виде «ДД.ММ.ГГГГ»."]
[null,null,null,null,null,"8","Потребность в финансовых средствах, необходимых для реализации инвестиционной программы, в том числе с разбивкой по годам, мероприятиям и источникам финансирования инвестиционной программы:","тыс. руб.",{"$f":"SUM(J19:K19)","v":0},{"$f":"SUMIF(List06_flag_year,\"y\",J20:J26)","v":0},null,null,"Указывается суммарная потребность в финансовых средствах, необходимых для реализации инвестиционной программы, по всем источникам финансирования."]
[null,"8.0",null,null,null,{"$f":"B20","v":"8.0"},null,"тыс. руб.",{"$f":"SUM(I21:I22)","v":0},{"$f":"SUM(J21:J22)","v":0},"y",null,"Год реализации инвестиционной программы/мероприятия должен содержаться в сроке реализации инвестиционной программы, определенном в пунктах 6 и 7 данной формы.\nВ случае реализации инвестиционной программы/мероприятия в течение нескольких лет информация по каждому году указывается в отдельных строках."]
[null,null,1,null,null,{"$f":"B20&\".\"&C21","v":"8.0.1"},null,"тыс. руб.",null,null,"i",null,"Вид источника финансирования определяется из перечня: Кредиты банков; Кредиты иностранных банков; Заемные средства др. организаций; Федеральный бюджет; Бюджет субъекта Российской Федерации; Бюджет муниципального образования; Средства внебюджетных фондов; Прибыль, направленная на инвестиции; Амортизация; Инвестиционная надбавка к тарифу; Плата за подключение (технологическое присоединение);  Прочие средства.\nВ случае наличия нескольких источников финансирования информация по каждому из них указывается в отдельных строках."]
[null,null,null,null,null,null,"Добавить источники"]
[null,"8.1",null,null,null,{"$f":"B23","v":"8.1"},null,"тыс. руб.",{"$f":"SUM(I24:I25)","v":0},{"$f":"SUM(J24:J25)","v":0},"y",null,"Год реализации инвестиционной программы/мероприятия должен содержаться в сроке реализации инвестиционной программы, определенном в пунктах 6 и 7 данной формы.\nВ случае реализации инвестиционной программы/мероприятия в течение нескольких лет информация по каждому году указывается в отдельных строках."]
[null,null,1,null,null,{"$f":"B23&\".\"&C24","v":"8.1.1"},null,"тыс. руб.",null,null,"i",null,"Вид источника финансирования определяется из перечня: Кредиты банков; Кредиты иностранных банков; Заемные средства др. организаций; Федеральный бюджет; Бюджет субъекта Российской Федерации; Бюджет муниципального образования; Средства внебюджетных фондов; Прибыль, направленная на инвестиции; Амортизация; Инвестиционная надбавка к тарифу; Плата за подключение (технологическое присоединение);  Прочие средства.\nВ случае наличия нескольких источников финансирования информация по каждому из них указывается в отдельных строках."]
[null,null,null,null,null,null,"Добавить источники"]
[null,null,null,null,null,null,"Добавить год"]
[null,null,null,null,null,"9","Целевые показатели инвестиционной программы","x","x","x"]
[null,null,null,null,null,"9.1","Срок окупаемости","x","x","x"]
[null,null,null,null,null,"9.1.1","Факт","лет"]
[null,null,null,null,null,"9.1.2","План","лет"]
[null,null,null,null,null,"9.2","Перебои в снабжении потребителей","x","x","x"]
[null,null,null,null,null,"9.2.1","Факт","час./чел.",null,null,null,null,"Указывается фактическое значение отношения суммы произведений продолжительности отключений и количества пострадавших потребителей от каждого из этих отключений к количеству потребителей, проживающих в домах, в которых проходили отключения в отчетном периоде."]
[null,null,null,null,null,"9.2.2","План","час./чел.",null,null,null,null,"Указывается плановое значение отношения суммы произведений\nпродолжительности отключений и количества пострадавших потребителей от каждого из этих отключений к количеству потребителей, проживающих в домах, в которых проходили отключения в отчетном периоде."]
[null,null,null,null,null,"9.3","Продолжительность (бесперебойность) поставки товаров и услуг","x","x","x"]
[null,null,null,null,null,"9.3.1","Факт","час./день",null,null,null,null,"Указывается фактическое значение отношения количества часов предоставления услуг к количеству календарных дней в отчетном периоде."]
[null,null,null,null,null,"9.3.2","План","час./день",null,null,null,null,"Указывается плановое значение отношения количества часов предоставления услуг к количеству календарных дней в отчетном периоде."]
[null,null,null,null,null,"9.4","Доля потерь и неучтенного потребления ","x","x","x"]
[null,null,null,null,null,"9.4.1","Факт","%",null,null,null,null,"Указывается фактическое значение доли потерь и неучтенного потребления воды в общем объеме воды, поданной в водопроводную сеть в отчетном периоде."]
[null,null,null,null,null,"9.4.2","План","%",null,null,null,null,"Указывается плановое значение доли потерь и неучтенного потребления воды в общем объеме воды, поданной в водопроводную сеть в отчетном периоде."]
[null,null,null,null,null,"9.5","Обеспеченность потребления товаров и услуг приборами учета","x","x","x"]
[null,null,null,null,null,"9.5.1","Факт","%"]
[null,null,null,null,null,"9.5.2","План","%"]
[null,null,null,null,null,"9.6","Численность населения, получающего услуги данной организации","x","x","x"]
[null,null,null,null,null,"9.6.1","Факт","чел.",null,null,null,null,"Указывается фактическое значение численности населения, проживающего в многоквартирных и жилых домах, подключенных к системе водоотведения и (или) очистки сточных вод в отчетном периоде."]
[null,null,null,null,null,"9.6.2","План","чел.",null,null,null,null,"Указывается плановое значение численности населения, проживающего в многоквартирных и жилых домах, подключенных к системе водоотведения и (или) очистки сточных вод в отчетном периоде."]
[null,null,null,null,null,"9.7","Удельное водопотребление","x","x","x"]
[null,null,null,null,null,"9.7.1","Факт","куб. м/чел.",null,null,null,null,"Указывается фактическое значение объема потребления воды в расчете на одного человека, получающего услуги организации в отчетном периоде."]
[null,null,null,null,null,"9.7.2","План","куб. м/чел.",null,null,null,null,"Указывается плановое значение объема потребления воды в расчете на одного человека, получающего услуги организации в отчетном периоде."]
[null,null,null,null,null,"9.8","Удельный расход электроэнергии","x","x","x"]
[null,null,null,null,null,"9.8.1","Факт","кВт.ч/куб. м",null,null,null,null,"Указывается фактическое значение расхода электроэнергии на производство и поставку в отчетном периоде."]
[null,null,null,null,null,"9.8.2","План","кВт.ч/куб. м",null,null,null,null,"Указывается плановое значение расхода электроэнергии на производство и поставку в отчетном периоде."]
[null,null,null,null,null,"9.9","Количество аварий","x","x","x"]
[null,null,null,null,null,"9.9.1","Факт","ед./км",null,null,null,null,"Указывается фактическое значение отношения количества аварий на системах коммунальной инфраструктуры к протяженности сетей в отчетном периоде."]
[null,null,null,null,null,"9.9.2","План","ед./км",null,null,null,null,"Указывается плановое значение отношения количества аварий на системах коммунальной инфраструктуры к протяженности сетей в отчетном периоде."]
[null,null,null,null,null,"9.10","Производительность труда","x","x","x",null,null,"В случае наличия дополнительных целевых показателей инвестиционной программы информация по ним указывается в отдельных строках."]
[null,null,null,null,null,"9.10.1","Факт","тыс. руб./чел.",null,null,null,null,"Указывается фактическое значение отношение фонда оплаты труда к численности всех рабочих основного вида деятельности организации.  \nВ число рабочих основного вида деятельности включаются рабочие, занятые на производственных процессах по подъему, очистке и транспортировке воды."]
[null,null,null,null,null,"9.10.2","План","тыс. руб./чел.",null,null,null,null,"Указывается плановое значение отношение фонда оплаты труда к численности всех рабочих основного вида деятельности организации.  \nВ число рабочих основного вида деятельности включаются рабочие, занятые на производственных процессах по подъему, очистке и транспортировке воды."]
[null,"9.10",null,null,null,{"$f":"B58","v":"9.10"},null,null,"x","x"]
[null,null,null,null,null,{"$f":"B58&\".1\"","v":"9.10.1"},"Факт",{"$f":"IF(H58=\"\",\"x\",H58)","v":"x"}]
[null,null,null,null,null,{"$f":"B58&\".2\"","v":"9.10.2"},"План",{"$f":"IF(H58=\"\",\"x\",H58)","v":"x"}]
[null,null,null,null,null,null,"Добавить показатель"]
[null,"print",null,null,null,"10","Использование инвестиционных средств за отчетный период","x","x","x"]
[null,"10.0",null,null,null,{"$f":"B63","v":"10.0"},"Использовано инвестиционных средств всего в отчетном периоде, в том числе:","тыс. руб.",{"$f":"SUM(I64:I67)","v":0},{"$f":"SUM(J64:J67)","v":0},null,null,"Указывается сумма использованных инвестиционных средства по всем источникам финансирования в отчетном периоде."]
[null,null,null,null,null,{"$f":"B63&\".1\"","v":"10.0.1"},"I квартал","тыс. руб.",{"$f":"SUMIF($G$68:$G$78,$G64,I$68:I$78)","v":0},0,null,null,"Указывается сумма использованных инвестиционных средств в I квартале отчетного периода по всем источникам финансирования."]
[null,null,null,null,null,{"$f":"B63&\".2\"","v":"10.0.2"},"II квартал","тыс. руб.",0,0,null,null,"Указывается сумма использованных инвестиционных средств в II квартале отчетного периода по всем источникам финансирования."]
[null,null,null,null,null,{"$f":"B63&\".3\"","v":"10.0.3"},"III квартал","тыс. руб.",0,0,null,null,"Указывается сумма использованных инвестиционных средств в III квартале отчетного периода по всем источникам финансирования."]
[null,null,null,null,null,{"$f":"B63&\".4\"","v":"10.0.4"},"IV квартал","тыс. руб.",0,0,null,null,"Указывается сумма использованных инвестиционных средств в IV квартале отчетного периода по всем источникам финансирования."]
[null,"10.0",null,null,null,{"$f":"B68","v":"10.0"},null,"тыс. руб.",{"$f":"SUM(I69:I72)","v":0},{"$f":"SUM(J69:J72)","v":0},{"$f":"G68","v":0},null,"Вид источника финансирования определяется из перечня: Кредиты банков; Кредиты иностранных банков; Заемные средства др. организаций; Федеральный бюджет; Бюджет субъекта Российской Федерации; Бюджет муниципального образования; Средства внебюджетных фондов; Прибыль, направленная на инвестиции; Амортизация; Инвестиционная надбавка к тарифу; Плата за подключение (технологическое присоединение); Прочие средства.\nВ случае наличия нескольких источников финансирования информация по каждому из них указывается в отдельных строках."]
[null,null,null,null,null,{"$f":"B68&\".1\"","v":"10.0.1"},"I квартал","тыс. руб."]
[null,null,null,null,null,{"$f":"B68&\".2\"","v":"10.0.2"},"II квартал","тыс. руб."]
[null,null,null,null,null,{"$f":"B68&\".3\"","v":"10.0.3"},"III квартал","тыс. руб."]
[null,null,null,null,null,{"$f":"B68&\".4\"","v":"10.0.4"},"IV квартал","тыс. руб."]
[null,"10.1",null,null,null,{"$f":"B73","v":"10.1"},null,"тыс. руб.",{"$f":"SUM(I74:I77)","v":0},{"$f":"SUM(J74:J77)","v":0},{"$f":"G73","v":0},null,"Вид источника финансирования определяется из перечня: Кредиты банков; Кредиты иностранных банков; Заемные средства др. организаций; Федеральный бюджет; Бюджет субъекта Российской Федерации; Бюджет муниципального образования; Средства внебюджетных фондов; Прибыль, направленная на инвестиции; Амортизация; Инвестиционная надбавка к тарифу; Плата за подключение (технологическое присоединение); Прочие средства.\nВ случае наличия нескольких источников финансирования информация по каждому из них указывается в отдельных строках."]
[null,null,null,null,null,{"$f":"B73&\".1\"","v":"10.1.1"},"I квартал","тыс. руб."]
[null,null,null,null,null,{"$f":"B73&\".2\"","v":"10.1.2"},"II квартал","тыс. руб."]
[null,null,null,null,null,{"$f":"B73&\".3\"","v":"10.1.3"},"III квартал","тыс. руб."]
[null,null,null,null,null,{"$f":"B73&\".4\"","v":"10.1.4"},"IV квартал","тыс. руб."]
[null,null,null,null,null,null,"Добавить источники"]
[]
[null,null,null,null,null,1,"Информация раскрывается в случае, если регулируемая организация выполняет или планирует выполнение инвестиционной программы в отчетном периоде."]
[null,null,null,null,null,2,"В случае выполнения нескольких мероприятий информация по каждому из них указывается в отдельной колонке"]

{"sheet":"Форма 1.0.2","index":16,"n_rows":15,"n_cols":13,"rows_kept":15,"cut":false,"hidden":true,"merged":[[11,10,12,10],[14,4,14,9],[4,3,4,9],[7,3,7,9],[7,10,9,10],[8,3,9,3],[8,4,8,5],[8,6,8,9]]}
[]
[]
[]
[]
[null,null,null,"Форма 1.0.2 Информация о публикации в печатных изданиях 2"]
[]
[]
[null,null,null,"Параметры формы",null,null,null,null,null,null,"Описание параметров формы"]
[null,null,null,"№ п/п","Форма публикации",null,"Официальное печатное издание"]
[null,null,null,null,"Номер","Наименование","Наименование","Номер","Дата выпуска","Ссылка на документ"]
[null,null,null,"1","2","3","4","5","6","7"]
["3","",null,"1",null,null,null,null,null,null,"В колонке «Дата выпуска» дата выпуска печатного издания указывается в виде «ДД.ММ.ГГГГ».\nВ колонке «Ссылка на документ» указывается ссылка на отсканированную копию печатного издания, предварительно загруженную в хранилище федеральной государственной информационной системы «Единая информационно-аналитическая система «Федеральный орган регулирования - региональные органы регулирования - субъекты регулирования» (далее – ФГИС ЕИАС), с опубликованной информацией.\nВ случае публикации информации в нескольких печатных изданиях информация по каждому из них указывается в отдельной строке.",null,{"$f":"IF(ISERROR(INDEX(kind_of_nameforms,MATCH(E12,kind_of_forms,0),1)),\"\",INDEX(kind_of_nameforms,MATCH(E12,kind_of_forms,0),1))","v":""}]
[null,null,null,null,"Добавить строку"]
[]
[null,null,null,null,"2 В данной форме публикуется информация по каждой из форм раскрытия, данные в которой относятся к муниципальному образованию, в котором отсутствует доступ в информационно-телекоммуникационную сеть «Интернет» (далее – сеть «Интернет»)."]

{"sheet":"Сведения об изменении","index":17,"n_rows":14,"n_cols":5,"rows_kept":14,"cut":false,"hidden":true,"merged":[[6,3,6,4],[7,3,7,4]]}
[]
[]
[]
[]
[]
[]
[null,null,null,"Сведения об изменениях в первоначально опубликованной информации"]
[null,null,null,{"$f":"IF(org=0,\"Не определено\",org)","v":"АО «ПО КХ г.о. Тольятти»"}]
[]
[null,null,null,"№ п/п","Сведения"]
[null,null,null,"1","2"]
[null,null,null,0]
[null,null,null,1]
[null,null,null,null,"Добавить строку"]

{"sheet":"Комментарии","index":18,"n_rows":13,"n_cols":5,"rows_kept":13,"cut":false,"hidden":false,"merged":[[6,3,6,4],[7,3,7,4]]}
[]
[]
[]
[]
[]
[]
[null,null,null,"Комментарии"]
[null,null,null,{"$f":"IF(org=0,\"Не определено\",org)","v":"АО «ПО КХ г.о. Тольятти»"}]
[]
[null,null,null,"№ п/п","Комментарий"]
[null,null,null,"1","2"]
[null,null,null,0]
[null,null,null,null,"Добавить"]

{"sheet":"Проверка","index":19,"n_rows":4,"n_cols":5,"rows_kept":4,"cut":false,"hidden":false,"merged":[[1,1,1,4]]}
[]
[null,"Результат проверки"]
[]
[null,"Ссылка1","Ссылка2","Причина","Статус"]

{"sheet":"modReestr","index":20,"n_rows":0,"n_cols":0,"rows_kept":0,"cut":false,"hidden":true,"merged":[]}

{"sheet":"AllSheetsInThisWorkbook","index":21,"n_rows":43,"n_cols":2,"rows_kept":43,"cut":false,"hidden":true,"merged":[]}
["Расчетные листы","Скрытые листы"]
["Инструкция","modProv"]
["Лог обновления","modReestr"]
["Титульный","AllSheetsInThisWorkbook"]
["Территории","modCheckCyan"]
["Дифференциация","modInfo"]
["Форма 1.0.1 | Форма 3.5.1","TEHSHEET"]
["Форма 3.5.1","modfrmSelectData"]
["Форма 3.5.2","modList06"]
["Форма 3.6","modList01"]
["Форма 3.7","modList05"]
["Форма 1.0.2","modList08"]
["Сведения об изменении","et_union_hor"]
["Комментарии","et_union_vert"]
["Проверка","modList00"]
[null,"modList02"]
[null,"modList03"]
[null,"modList04"]
[null,"modList07"]
[null,"modList09"]
[null,"modHTTP"]
[null,"modfrmRegion"]
[null,"MR_LIST"]
[null,"REESTR_VT"]
[null,"REESTR_VED"]
[null,"modfrmReestrObj"]
[null,"DataOrg"]
[null,"modfrmReestr"]
[null,"modUpdTemplMain"]
[null,"REESTR_ORG"]
[null,"modClassifierValidate"]
[null,"modHyp"]
[null,"modfrmDateChoose"]
[null,"modComm"]
[null,"modThisWorkbook"]
[null,"REESTR_MO"]
[null,"REESTR_MO_FILTER"]
[null,"modfrmReestrMR"]
[null,"modServiceModule"]
[null,"modfrmCheckUpdates"]
[null,"REESTR_DS"]
[null,"REESTR_CHS"]
[null,"REESTR_LINK"]

{"sheet":"modCheckCyan","index":22,"n_rows":97,"n_cols":1,"rows_kept":97,"cut":false,"hidden":true,"merged":[]}
[]
[{"$f":"IF(Дифференциация!$E$22=\"\",1,0)","v":0}]
[{"$f":"IF('Сведения об изменении'!$E$13=\"\",1,0)","v":1}]
[{"$f":"IF(Территории!$E$12=\"\",1,0)","v":0}]
[{"$f":"IF('Форма 3.5.1'!$G$17=\"\",1,0)","v":0}]
[{"$f":"IF('Форма 3.5.1'!$G$19=\"\",1,0)","v":0}]
[{"$f":"IF('Форма 3.5.1'!$G$20=\"\",1,0)","v":0}]
[{"$f":"IF('Форма 3.5.1'!$G$21=\"\",1,0)","v":0}]
[{"$f":"IF('Форма 3.5.1'!$G$22=\"\",1,0)","v":0}]
[{"$f":"IF('Форма 3.5.1'!$G$23=\"\",1,0)","v":0}]
[{"$f":"IF('Форма 3.5.1'!$G$24=\"\",1,0)","v":0}]
[{"$f":"IF('Форма 3.5.1'!$G$25=\"\",1,0)","v":0}]
[{"$f":"IF('Форма 3.5.1'!$G$26=\"\",1,0)","v":0}]
[{"$f":"IF('Форма 3.5.1'!$G$27=\"\",1,0)","v":0}]
[{"$f":"IF('Форма 3.5.1'!$G$28=\"\",1,0)","v":0}]
[{"$f":"IF('Форма 3.5.1'!$G$29=\"\",1,0)","v":0}]
[{"$f":"IF('Форма 3.5.1'!$G$30=\"\",1,0)","v":0}]
[{"$f":"IF('Форма 3.5.1'!$G$31=\"\",1,0)","v":0}]
[{"$f":"IF('Форма 3.5.1'!$G$32=\"\",1,0)","v":0}]
[{"$f":"IF('Форма 3.5.1'!$G$33=\"\",1,0)","v":0}]
[{"$f":"IF('Форма 3.5.1'!$G$34=\"\",1,0)","v":0}]
[{"$f":"IF('Форма 3.5.1'!$G$35=\"\",1,0)","v":0}]
[{"$f":"IF('Форма 3.5.1'!$G$36=\"\",1,0)","v":0}]
[{"$f":"IF('Форма 3.5.1'!$G$38=\"\",1,0)","v":0}]
[{"$f":"IF('Форма 3.5.1'!$G$66=\"\",1,0)","v":0}]
[{"$f":"IF('Форма 3.5.1'!$G$67=\"\",1,0)","v":0}]
[{"$f":"IF('Форма 3.5.1'!$G$68=\"\",1,0)","v":0}]
[{"$f":"IF('Форма 3.5.1'!$G$69=\"\",1,0)","v":0}]
[{"$f":"IF('Форма 3.5.1'!$G$70=\"\",1,0)","v":0}]
[{"$f":"IF('Форма 3.5.1'!$G$71=\"\",1,0)","v":0}]
[{"$f":"IF('Форма 3.5.1'!$G$72=\"\",1,0)","v":0}]
[{"$f":"IF('Форма 3.5.1'!$G$73=\"\",1,0)","v":0}]
[{"$f":"IF('Форма 3.5.1'!$G$75=\"\",1,0)","v":0}]
[{"$f":"IF('Форма 3.5.1'!$G$76=\"\",1,0)","v":0}]
[{"$f":"IF('Форма 3.5.1'!$G$77=\"\",1,0)","v":0}]
[{"$f":"IF('Форма 3.5.1'!$G$78=\"\",1,0)","v":0}]
[{"$f":"IF('Форма 3.6'!$G$12=\"\",1,0)","v":0}]
[{"$f":"IF('Форма 3.6'!$G$13=\"\",1,0)","v":0}]
[{"$f":"IF('Форма 3.6'!$G$14=\"\",1,0)","v":0}]
[{"$f":"IF('Форма 3.6'!$G$15=\"\",1,0)","v":0}]
[{"$f":"IF('Форма 3.6'!$G$16=\"\",1,0)","v":0}]
[{"$f":"IF('Форма 3.6'!$G$17=\"\",1,0)","v":0}]
[{"$f":"IF('Форма 3.6'!$G$18=\"\",1,0)","v":0}]
[{"$f":"IF('Форма 3.6'!$G$19=\"\",1,0)","v":0}]
[{"$f":"IF('Форма 3.6'!$G$20=\"\",1,0)","v":0}]
[{"$f":"IF('Форма 3.6'!$G$21=\"\",1,0)","v":0}]
[{"$f":"IF('Форма 3.6'!$G$22=\"\",1,0)","v":0}]
[{"$f":"IF('Форма 3.6'!$G$23=\"\",1,0)","v":0}]
[{"$f":"IF('Форма 3.6'!$G$24=\"\",1,0)","v":0}]
[{"$f":"IF('Форма 3.6'!$G$25=\"\",1,0)","v":0}]
[{"$f":"IF('Форма 3.6'!$G$26=\"\",1,0)","v":0}]
[{"$f":"IF('Форма 3.6'!$G$27=\"\",1,0)","v":0}]
[{"$f":"IF('Форма 3.6'!$G$28=\"\",1,0)","v":0}]
[{"$f":"IF('Форма 3.6'!$G$29=\"\",1,0)","v":0}]
[{"$f":"IF('Форма 3.6'!$G$30=\"\",1,0)","v":0}]
[{"$f":"IF('Форма 3.6'!$G$31=\"\",1,0)","v":0}]
[{"$f":"IF('Форма 3.6'!$G$32=\"\",1,0)","v":0}]
[{"$f":"IF('Форма 3.6'!$G$33=\"\",1,0)","v":0}]
[{"$f":"IF('Форма 3.6'!$G$34=\"\",1,0)","v":0}]
[{"$f":"IF('Форма 3.6'!$G$11=\"\",1,0)","v":0}]
[{"$f":"IF('Форма 3.7'!$I$11=\"\",1,0)","v":1}]
[{"$f":"IF('Форма 3.7'!$I$12=\"\",1,0)","v":1}]
[{"$f":"IF('Форма 3.7'!$I$13=\"\",1,0)","v":1}]
[{"$f":"IF('Форма 3.7'!$I$15=\"\",1,0)","v":1}]
[{"$f":"IF('Форма 3.7'!$I$16=\"\",1,0)","v":1}]
[{"$f":"IF('Форма 3.7'!$I$17=\"\",1,0)","v":1}]
[{"$f":"IF('Форма 3.7'!$I$18=\"\",1,0)","v":1}]
[{"$f":"IF('Форма 3.7'!$G$23=\"\",1,0)","v":1}]
[{"$f":"IF('Форма 3.7'!$G$24=\"\",1,0)","v":1}]
[{"$f":"IF('Форма 3.7'!$I$24=\"\",1,0)","v":1}]
[{"$f":"IF('Форма 3.7'!$G$73=\"\",1,0)","v":1}]
[{"$f":"IF('Форма 3.7'!$I$74=\"\",1,0)","v":1}]
[{"$f":"IF('Форма 3.7'!$I$75=\"\",1,0)","v":1}]
[{"$f":"IF('Форма 3.7'!$I$76=\"\",1,0)","v":1}]
[{"$f":"IF('Форма 3.7'!$I$77=\"\",1,0)","v":1}]
[{"$f":"IF('Форма 3.5.1'!$E$43=\"\",1,0)","v":0}]
[{"$f":"IF('Форма 3.5.1'!$E$44=\"\",1,0)","v":0}]
[{"$f":"IF('Форма 3.5.1'!$E$45=\"\",1,0)","v":0}]
[{"$f":"IF('Форма 3.5.1'!$E$46=\"\",1,0)","v":0}]
[{"$f":"IF('Форма 3.5.1'!$E$47=\"\",1,0)","v":0}]
[{"$f":"IF('Форма 3.5.1'!$E$48=\"\",1,0)","v":0}]
[{"$f":"IF('Форма 3.5.1'!$E$49=\"\",1,0)","v":0}]
[{"$f":"IF('Форма 3.5.1'!$E$50=\"\",1,0)","v":0}]
[{"$f":"IF('Форма 3.5.1'!$E$51=\"\",1,0)","v":0}]
[{"$f":"IF('Форма 3.5.1'!$E$52=\"\",1,0)","v":0}]
[{"$f":"IF('Форма 3.5.1'!$E$53=\"\",1,0)","v":0}]
[{"$f":"IF('Форма 3.5.1'!$E$54=\"\",1,0)","v":0}]
[{"$f":"IF('Форма 3.5.1'!$E$55=\"\",1,0)","v":0}]
[{"$f":"IF('Форма 3.5.1'!$E$56=\"\",1,0)","v":0}]
[{"$f":"IF('Форма 3.5.1'!$E$57=\"\",1,0)","v":0}]
[{"$f":"IF('Форма 3.5.1'!$E$58=\"\",1,0)","v":0}]
[{"$f":"IF('Форма 3.5.1'!$E$59=\"\",1,0)","v":0}]
[{"$f":"IF('Форма 3.5.1'!$E$60=\"\",1,0)","v":0}]
[{"$f":"IF('Форма 3.5.1'!$E$61=\"\",1,0)","v":0}]
[{"$f":"IF('Форма 3.5.1'!$E$62=\"\",1,0)","v":0}]
[{"$f":"IF('Форма 3.5.1'!$E$63=\"\",1,0)","v":0}]
[{"$f":"IF('Форма 3.5.1'!$E$64=\"\",1,0)","v":0}]

{"sheet":"modInfo","index":23,"n_rows":11,"n_cols":2,"rows_kept":11,"cut":false,"hidden":true,"merged":[[4,3,4,10],[0,3,0,10],[1,3,1,10],[2,3,2,10],[3,3,3,10]]}
[null,"Территории"]
[1,"Наименование территории оказания услуг для целей идентификации"]
[2,"Муниципальные районы и муниципальные образования, на территории которых осуществляется оказание услуг"]
[null,"Дифференциация"]
[1,"В случае, если регулируемая организация осуществляет несколько видов деятельности, информация о которых подлежит раскрытию, информация по каждому виду деятельности раскрывается отдельно."]
[2,"Поле заполняется выбором значений из списка. Если значений для выбора нет - убедитесь, что лист \"Территории\" заполнен."]
[3,"Условное наименование централизованной системы коммунальной инфраструктуры для целей идентификации."]
[4,"В случае, если регулируемыми организациями оказываются услуги по нескольким технологически не связанным между собой  централизованным системам коммунальной инфраструктуры и если в отношении указанных централизованных систем устанавливаются различные тарифы, то информация раскрывается отдельно по каждой централизованной системе коммунальной инфраструктуры."]
[null,"Сведения об изменении"]
[1,"Лист заполняется в случае, если на Титульном листе в поле \"Тип отчета\" выбрано значение «Изменения в раскрытой ранее информации»."]
[null,"Нет доступных обновлений, версия отчёта актуальна"]

{"sheet":"TEHSHEET","index":24,"n_rows":87,"n_cols":23,"rows_kept":87,"cut":false,"hidden":true,"merged":[[0,18,0,19],[0,21,0,22]]}
["REGION",null,"year_list","logical","Месяц\n(MONTH)","Квартал\n(QUARTER)","Месяц\n(kind_of_publication)","Единица измерения объема оказываемых услуг ГВС\n/kind_of_unit_GVS/","Вид тарифа\n/list_of_tariff/","mr_id","версия шаблона\n (DocProp_Version)","0.1","Тип отчета\ndata_type",null,"Источники финансирования\n/source_of_funding/","цель инвестиционной программы /kind_of_purchase_method/",null,null,"Перечень форм\n(kind_of_forms)",null,null,"цель инвестиционной программы /objective_of_IPR/"]
["Алтайский край",null,2017,"да","январь","I квартал","На официальном сайте организации","тыс.куб.м/сутки",null,52,"код шаблона\n(DocProp_TemplateCode)","FAS.JKH.OPEN.INFO.BALANCE.HVS","первичное раскрытие информации",null,"кредиты банков","Торги/аукционы",null,null,"Форма 1.0.1","Основные параметры раскрываемой информации",null,"автоматизация (с уменьшением штата)",false]
["Амурская область",null,2018,"нет","февраль","II квартал","На сайте регулирующего органа","Гкал/час","Без дифференциации","sys_id","сфера\n(TSphere)","ХВС","изменения в раскрытой ранее информации",null,"кредиты иностранных банков","Прямые договора без торгов",null,null,"Форма 3.5.1","Информация об основных показателях финансово-хозяйственной деятельности регулируемой организации, включая структуру основных производственных затрат (в части регулируемой деятельности)",null,"уменьшение удельных затрат (повышение КПД)",false]
["Архангельская область",null,2019,null,"март","III квартал",null,"куб.м/час",null,104,"сфера(латиница)\n(TSphere_trans)","VS",null,null,"заемные средства др. организаций","Прочее",null,null,"Форма 3.5.2","Информация о расходах на капитальный и текущий ремонт основных производственных средств, расходах на услуги производственного характера",null,"уменьшение издержек на производство",false]
["Астраханская область",null,2020,null,"апрель","IV квартал",null,null,null,null,"сфера расширено\n(TSphere_full)",null,null,null,"федеральный бюджет",null,null,null,"Форма 3.6","Информация об основных потребительских характеристиках регулируемых товаров и услуг регулируемой организации и их соответствии установленным требованиям",null,"снижение аварийности",false]
["Белгородская область",null,null,null,"май",null,null,null,null,null,null,null,null,null,"бюджет субъекта Российской Федерации",null,null,null,"Форма 3.7","Информация об инвестиционных программах регулируемой организации",null,"прочее",false]
["Брянская область",null,null,null,"июнь",null,null,null,null,null,null,null,null,null,"бюджет муниципального образования"]
["Владимирская область",null,null,null,"июль",null,null,null,null,null,"true",null,null,null,"средства внебюджетных фондов"]
["Волгоградская область",null,null,null,"август",null,null,null,null,null,null,null,null,null,"прибыль, направленная на инвестиции"]
["Вологодская область",null,null,null,"сентябрь",null,null,null,null,null,null,null,null,null,"амортизация"]
["Воронежская область",null,null,null,"октябрь",null,null,null,null,null,null,null,null,null,"инвестиционная надбавка к тарифу"]
["г.Байконур",null,null,null,"ноябрь",null,null,null,null,null,null,null,null,null,"плата за подключение (технологическое присоединение)"]
["г. Москва",null,null,null,"декабрь",null,null,null,null,null,null,null,null,null,"прочие средства"]
["г.Санкт-Петербург"]
["г.Севастополь"]
["Еврейская автономная область",null,null,null,null,null,"Текущая дата"]
["Забайкальский край",null,"Организация",{"$f":"IF(f_year = \"\",\"\", \"01.01.\"&f_year)","v":"01.01.2020"},{"$f":"IF(f_year = \"\",\"\", \"31.12.\"& f_year)","v":"31.12.2020"},null,"27.04.2021 17:09:55"]
["Ивановская область"]
["Иркутская область",null,null,null,null,null,"Признак изменения данных на листе Доступ к товарам и услугам"]
["Кабардино-Балкарская республика",null,"Виды деятельности",null,null,null,true]
["Калининградская область"]
["Калужская область"]
["Камчатский край"]
["Карачаево-Черкесская республика"]
["Кемеровская область"]
["Кировская область"]
["Костромская область"]
["Краснодарский край"]
["Красноярский край"]
["Курганская область"]
["Курская область"]
["Ленинградская область"]
["Липецкая область"]
["Магаданская область"]
["Московская область"]
["Мурманская область"]
["Ненецкий автономный округ"]
["Нижегородская область"]
["Новгородская область"]
["Новосибирская область"]
["Омская область"]
["Оренбургская область"]
["Орловская область"]
["Пензенская область"]
["Пермский край"]
["Приморский край"]
["Псковская область"]
["Республика Адыгея"]
["Республика Алтай"]
["Республика Башкортостан"]
["Республика Бурятия"]
["Республика Дагестан"]
["Республика Ингушетия"]
["Республика Калмыкия"]
["Республика Карелия"]
["Республика Коми"]
["Республика Крым"]
["Республика Марий Эл"]
["Республика Мордовия"]
["Республика Саха (Якутия)"]
["Республика Северная Осетия-Алания"]
["Республика Татарстан"]
["Республика Тыва"]
["Республика Хакасия"]
["Ростовская область"]
["Рязанская область"]
["Самарская область"]
["Саратовская область"]
["Сахалинская область"]
["Свердловская область"]
["Смоленская область"]
["Ставропольский край"]
["Тамбовская область"]
["Тверская область"]
["Томская область"]
["Тульская область"]
["Тюменская область"]
["Удмуртская республика"]
["Ульяновская область"]
["Хабаровский край"]
["Ханты-Мансийский автономный округ"]
["Челябинская область"]
["Чеченская республика"]
["Чувашская республика"]
["Чукотский автономный округ"]
["Ямало-Ненецкий автономный округ"]
["Ярославская область"]

{"sheet":"modfrmSelectData","index":25,"n_rows":0,"n_cols":0,"rows_kept":0,"cut":false,"hidden":true,"merged":[]}

{"sheet":"modList06","index":26,"n_rows":0,"n_cols":0,"rows_kept":0,"cut":false,"hidden":true,"merged":[]}

{"sheet":"modList01","index":27,"n_rows":0,"n_cols":0,"rows_kept":0,"cut":false,"hidden":true,"merged":[]}

{"sheet":"modList08","index":28,"n_rows":0,"n_cols":0,"rows_kept":0,"cut":false,"hidden":true,"merged":[]}

{"sheet":"et_union_hor","index":29,"n_rows":92,"n_cols":34,"rows_kept":92,"cut":false,"hidden":true,"merged":[[77,4,77,17],[78,20,84,20],[78,21,84,21],[81,7,82,7],[78,6,78,15],[77,3,91,3],[77,28,91,28],[80,4,83,4],[80,5,83,5],[80,6,83,6],[80,18,83,18],[81,8,82,8],[87,4,90,4],[87,5,90,5],[87,6,90,6],[87,18,90,18],[88,8,89,8],[88,9,89,9],[88,10,89,10],[80,11,80,12],[87,11,87,12],[85,6,85,15],[81,9,82,9],[81,10,82,10],[85,20,91,20],[85,21,91,21],[88,7,89,7],[67,3,73,3],[67,28,73,28],[68,4,68,15],[71,4,71,15],[67,4,67,17],[68,20,70,20],[68,21,70,21],[71,20,73,20],[71,21,73,21],[50,3,50,5],[50,6,51,6],[14,2,15,2],[14,3,15,3],[14,4,15,4],[19,2,20,2],[19,5,20,5],[34,6,35,6],[19,6,20,6],[49,3,49,6],[34,7,35,7],[34,8,35,8],[34,9,35,9],[28,8,29,8],[28,9,29,9],[19,7,20,7],[28,3,30,3],[28,4,30,4],[28,5,30,5],[28,6,29,6],[28,7,29,7]]}
[]
[]
["et_Comm"]
[]
[]
[]
["et_List04"]
[]
[]
[]
[]
[]
["et_List09_0"]
[]
[null,"auto",null,1,null,null,0,null,null,"0",null,null,{"$f":"mergeValue(H15)","v":0},null,null,{"$f":"IF(ISERROR(MATCH(MID(Q15,1,250),MID(note_ter,1,250),0)),\"n\",\"y\")","v":"y"},null,{"$f":"K15&\"(\"&L15&\")\"","v":"()"}]
[null,null,null,null,null,null,null,"Добавить МР"]
[]
["et_List09_1"]
[]
[null,"auto",null,null,null,null,0,null,null,"0",null,null,{"$f":"mergeValue(H20)","v":0},null,null,null,null,{"$f":"K20&\"(\"&L20&\")\"","v":"()"}]
[null,null,null,null,null,null,null,null,null,null,"Добавить МО"]
[]
["et_List09_2"]
[]
[null,"auto",null,null,null,null,null,null,null,0,null,null,{"$f":"mergeValue(H25)","v":0},null,null,null,null,{"$f":"K25&\" (\"&L25&\")\"","v":" ()"}]
[]
["et_List07_1"]
[]
[null,null,null,"1",null,"нет",null,1,null,"нет",null,"1",null,null,null,null,null,null,null,null,null,null,null,null,"a",1705000]
[null,null,null,null,null,null,null,null,null,null,null,null,"Добавить централизованную систему коммунальной инфраструктуры"]
[null,null,null,null,null,null,null,null,"Добавить описание территории оказания услуг"]
[]
["et_List07_4"]
[]
[null,null,null,null,null,null,null,1,null,"нет",null,"1",null,null,null,null,null,null,null,null,null,null,null,null,"a",1705000]
[null,null,null,null,null,null,null,null,null,null,null,null,"Добавить централизованную систему коммунальной инфраструктуры"]
[]
["et_List07_5"]
[]
[null,null,null,null,null,null,null,null,null,null,null,"1",null,null,null,null,null,null,null,null,null,null,null,null,"a",1705000]
[]
[]
["et_List03"]
[]
["3","",null,null,null,null,null,null,null,null,null,null,{"$f":"IF(ISERROR(INDEX(kind_of_nameforms,MATCH(E45,kind_of_forms,0),1)),\"\",INDEX(kind_of_nameforms,MATCH(E45,kind_of_forms,0),1))","v":""}]
[]
["et_List02_st","et_List02_ter","et_List02_mr","et_List02_mo"]
[]
[]
[null,null,null,"Форма 1.0.1"]
[null,null,null,"Параметры формы",null,null,"Описание параметров формы"]
["\\",null,null,"№ п/п",null,"Информация"]
[null,null,null,"1",2,3,4]
[null,null,null,1,"Дата заполнения/внесения изменений",{"$f":"IF(form_up_date=\"\",\"\",form_up_date)","v":"27.04.2021"},"Указывается календарная дата первичного заполнения или внесения изменений в форму в виде «ДД.ММ.ГГГГ»."]
[null,null,null,"2.1","Наименование централизованной системы коммунальной инфраструктуры",null,"Указывается наименование централизованной системы холодного водоснабжения/горячего водоснабжения/водоотведения/теплоснабжения, к которой относится размещаемая информация.\nВ случае наличия нескольких централизованных систем коммунальной инфраструктуры, информация по каждой из них указывается в отдельной строке. "]
[null,null,null,"3.1","Наименование регулируемого вида деятельности",null,"Указывается наименование вида регулируемой деятельности."]
[null,null,null,"4.1","Территория оказания услуги по регулируемому виду деятельности","x"]
[null,null,null,{"$f":"D57&\".1\"","v":"4.1.1"},"Субъект РФ",{"$f":"IF(region_name=\"\",\"\",region_name)","v":"Самарская область"},"Указывается наименование субъекта Российской Федерации"]
[null,null,null,"4.1.1.1","муниципальный район",null,"Указывается наименование муниципального района, на территории которого организация оказывает услуги по регулируемому виду деятельности."]
[null,null,null,"4.1.1.1.1","муниципальное образование",null,"Указывается наименование и код муниципального района, муниципального образования в соответствии с Общероссийским классификатором территорий муниципальных образований (далее - ОКТМО), входящего в муниципальный район, на территории которого организация оказывает услуги по регулируемому виду деятельности.\nВ случае оказания услуг по регулируемому виду деятельности на территории нескольких муниципальных районов (муниципальных образований) данные по каждому их них указываются в отдельной строке."]
[]
[]
[]
[]
[]
["et_List05_4"]
[]
[null,null,null,"1",null,null,null,null,null,null,null,null,null,null,null,null,null,null,null,null,null,null,null,null,null,null,null,null,null,null,"",null,"NOTSHOW",3]
[null,null,null,null,"Информация об объемах товаров и услуг, их стоимости и способах приобретения у организаций, в том числе:",null,null,null,null,null,null,null,null,null,null,null,{"$f":"SUMIF(T70:T71,\"i\",Q70:Q71)","v":0},null,"Указывается сумма стоимости приобретения товаров и услуг у организаций, сумма оплаты услуг которых превышает 20% суммы расходов на капитальный и текущий ремонт основных производственных средства","i",1,{"$f":"INDEX(List01_flag_index_1,1,MATCH(A68,List01_NumberColumns,0))","v":{"$error":"#N/A"}}]
[null,null,null,null,null,0]
[]
[null,null,null,null,"Расходы на услуги производственного характера, выполняемые по договорам с организациями на проведение регламентных работ в рамках технологического процесса. Из них товары и услуги, приобретенные у организаций, сумма оплаты услуг которых превышает 20% суммы расходов по статье:",null,null,null,null,null,null,null,null,null,null,null,{"$f":"SUMIF(T73:T74,\"i\",Q73:Q74)","v":0},null,"Указывается сумма стоимости приобретения товаров и услуг у организаций, сумма оплаты услуг которых превышает 20% суммы расходов на капитальный и текущий ремонт основных производственных средства","i",2,{"$f":"INDEX(List01_flag_index_2,1,MATCH(A68,List01_NumberColumns,0))","v":{"$error":"#N/A"}}]
[null,null,null,null,null,0]
[]
[]
["et_List05_4"]
[]
[null,null,null,"1",null,null,null,null,null,null,null,null,null,null,null,null,null,null,null,null,null,null,null,null,null,null,null,null,null,null,"",null,"NOTSHOW",3]
[null,null,null,null,null,1,"Информация об объемах товаров и услуг, их стоимости и способах приобретения у организаций, в том числе:",null,null,null,null,null,null,null,null,null,{"$f":"SUMIF(T80:T85,\"i\",Q80:Q85)","v":0},null,"Указывается сумма стоимости приобретения товаров и услуг у организаций, сумма оплаты услуг которых превышает 20% суммы расходов на капитальный и текущий ремонт основных производственных средства","i",1,{"$f":"INDEX(List01_flag_index_1,1,MATCH(A78,List01_NumberColumns,0))","v":{"$error":"#N/A"}}]
[null,null,null,null,null,0]
[null,null,null,null,null,"1.1",null,null,"1","Итого по поставщику, в том числе","х","х",null,"х","х","х",{"$f":"SUM(Q82:Q84)","v":0},{"$f":"nerr(Q81/List01_costs_OPS)*100","v":0},"Указывается информация отдельно по организациям, сумма оплаты услуг которых превышает 20% суммы расходов на капитальный и текущий ремонт основных производственных средства.\nСпособ приобретения определяется из перечня: Торги/аукционы; Прямые договора без торгов; Прочее\nВ случае наличия нескольких поставщиков, договоров, товаров и (или) услуг информация по ним указывается в отдельных строках.\n","i"]
[null,null,null,null,null,null,null,null,"1.1",null,null,null,"1",null,null,null,null,{"$f":"nerr(costs_OPS/List01_costs_OPS)*100","v":0}]
[null,null,null,null,null,null,null,null,null,null,null,null,null,"Добавить товар/услугу"]
[null,null,null,null,null,null,null,null,null,"Добавить способ"]
[null,null,null,null,null,null,"Добавить поставщика"]
[null,null,null,null,null,2,"Расходы на услуги производственного характера, выполняемые по договорам с организациями на проведение регламентных работ в рамках технологического процесса. Из них товары и услуги, приобретенные у организаций, сумма оплаты услуг которых превышает 20% суммы расходов по статье:",null,null,null,null,null,null,null,null,null,{"$f":"SUMIF(T87:T92,\"i\",Q87:Q92)","v":0},null,"Указывается сумма стоимости приобретения товаров и услуг у организаций, сумма оплаты услуг которых превышает 20% суммы расходов на услуги производственного характера","i",2,{"$f":"INDEX(List01_flag_index_2,1,MATCH(A78,List01_NumberColumns,0))","v":{"$error":"#N/A"}}]
[null,null,null,null,null,0]
[null,null,null,null,null,"2.1",null,null,"1","Итого по поставщику, в том числе","х","х",null,"х","х","х",{"$f":"SUM(Q89:Q91)","v":0},{"$f":"nerr(Q88/List01_costs_OPS)*100","v":0},"Указывается информация отдельно по организациям, сумма оплаты услуг которых превышает 20% суммы расходов на услуги производственного характера.\nСпособ приобретения определяется из перечня: Торги/аукционы; Прямые договора без торгов; Прочее\nВ случае наличия нескольких поставщиков, договоров, товаров и (или) услуг информация по ним указывается в отдельных строках.","i"]
[null,null,null,null,null,null,null,null,"1.1",null,null,null,"1",null,null,null,null,{"$f":"nerr(costs_OPS/List01_costs_OPS)*100","v":0}]
[null,null,null,null,null,null,null,null,null,null,null,null,null,"Добавить товар/услугу"]
[null,null,null,null,null,null,null,null,null,"Добавить способ"]
[null,null,null,null,null,null,"Добавить поставщика"]

{"sheet":"et_union_vert","index":30,"n_rows":0,"n_cols":0,"rows_kept":0,"cut":false,"hidden":true,"merged":[]}

{"sheet":"modList00","index":31,"n_rows":0,"n_cols":0,"rows_kept":0,"cut":false,"hidden":true,"merged":[]}

{"sheet":"modList02","index":32,"n_rows":0,"n_cols":0,"rows_kept":0,"cut":false,"hidden":true,"merged":[]}

{"sheet":"modList03","index":33,"n_rows":0,"n_cols":0,"rows_kept":0,"cut":false,"hidden":true,"merged":[]}

{"sheet":"modList04","index":34,"n_rows":0,"n_cols":0,"rows_kept":0,"cut":false,"hidden":true,"merged":[]}

{"sheet":"modList09","index":35,"n_rows":0,"n_cols":0,"rows_kept":0,"cut":false,"hidden":true,"merged":[]}

{"sheet":"modHTTP","index":36,"n_rows":0,"n_cols":0,"rows_kept":0,"cut":false,"hidden":true,"merged":[]}

{"sheet":"modfrmRegion","index":37,"n_rows":0,"n_cols":0,"rows_kept":0,"cut":false,"hidden":true,"merged":[]}

{"sheet":"MR_LIST","index":38,"n_rows":0,"n_cols":0,"rows_kept":0,"cut":false,"hidden":true,"merged":[]}

{"sheet":"REESTR_VT","index":39,"n_rows":0,"n_cols":0,"rows_kept":0,"cut":false,"hidden":true,"merged":[]}

{"sheet":"REESTR_VED","index":40,"n_rows":4,"n_cols":2,"rows_kept":4,"cut":false,"hidden":true,"merged":[]}
["ID_TARIFF_NAME","VED_NAME"]
[4189714,"Водоотведение"]
[4189713,"Транспортировка"]
[4189712,"Подключение (технологическое присоединение) к централизованной системе водоотведения"]

{"sheet":"modfrmReestrObj","index":41,"n_rows":0,"n_cols":0,"rows_kept":0,"cut":false,"hidden":true,"merged":[]}

{"sheet":"DataOrg","index":42,"n_rows":0,"n_cols":0,"rows_kept":0,"cut":false,"hidden":true,"merged":[]}

{"sheet":"modfrmReestr","index":43,"n_rows":0,"n_cols":0,"rows_kept":0,"cut":false,"hidden":true,"merged":[]}

{"sheet":"modUpdTemplMain","index":44,"n_rows":0,"n_cols":0,"rows_kept":0,"cut":false,"hidden":true,"merged":[]}

{"sheet":"REESTR_ORG","index":45,"n_rows":125,"n_cols":10,"rows_kept":125,"cut":false,"hidden":true,"merged":[]}
["№","REGION_ID","REGION_NAME","RST_ORG_ID","ORG_NAME","INN_NAME","KPP_NAME","ORG_START_DATE","ORG_END_DATE"]
[1,"2638","Самарская область","26322473","АО \"Арконик СМЗ\"","6310000160","631050001",null,null,"VO"]
[2,"2638","Самарская область","30385470","АО \"Водные технологии\"","3328462474","631401001",null,null,"VO"]
[3,"2638","Самарская область","26783848","АО \"Водоканал\"","6377011416","637701001","16-03-2010 00:00:00",null,"VO"]
[4,"2638","Самарская область","30354412","АО \"Главное управление жилищно-коммунального хозяйства\"","5116000922","631743001",null,null,"VO"]
[5,"2638","Самарская область","26485575","АО \"КНПЗ\"","6314006396","997250001","15-10-2002 00:00:00",null,"VO"]
[6,"2638","Самарская область","26485577","АО \"Международный аэропорт \"Курумоч\"","6313036408","631050001",null,null,"VO"]
[7,"2638","Самарская область","26485720","АО \"ННК\"","6330017980","631050001",null,null,"VO"]
[8,"2638","Самарская область","30918061","АО \"Особая экономическая зона промышленно-производственного типа \"Тольятти\"","6321345424","632001001",null,null,"VO"]
[9,"2638","Самарская область","28047458","АО \"Тольяттисинтез\"","6323106975","632401001",null,null,"VO"]
[10,"2638","Самарская область","26485717","АО “Новокуйбышевский нефтеперерабатывающий завод”","6330000553","997150001","15-10-2002 00:00:00",null,"VO"]
[11,"2638","Самарская область","26485308","АО “РЭУ” “Самарский”","7714783092","631143001",null,null,"VO"]
[12,"2638","Самарская область","26485395","АО “ТЕВИС”","6320000561","632001001",null,null,"VO"]
[13,"2638","Самарская область","30398817","АО «ПО КХ г.о. Тольятти»","6324014124","632401001",null,null,"VO"]
[14,"2638","Самарская область","26485294","АО «Транснефть-Приволга» (филиал РНУ)","6317024749","631702003",null,null,"VO"]
[15,"2638","Самарская область","31014933","ГАУ «ЦИК СО»","6315856452","631501001",null,null,"VO"]
[16,"2638","Самарская область","30403609","ЗАО \"Нефтефлот\"","6314010931","631401001",null,null,"VO"]
[17,"2638","Самарская область","28461911","ЗАО \"СВ-Поволжское\"","6322025804","638201001",null,null,"VO"]
[18,"2638","Самарская область","26774814","ЗАО \"Энергетика и связь строительства","6320005633","632401001","16-08-2002 00:00:00",null,"VO"]
[19,"2638","Самарская область","26485546","ЗАО “Самарский завод Нефтемаш”","6314007537","631401001",null,null,"VO"]
[20,"2638","Самарская область","26485128","ЗАО “Северный ключ”","6379000674","635701001",null,null,"VO"]
[21,"2638","Самарская область","28237568","ИП Гращенков В.В.","637200358828","отсутствует",null,null,"VO"]
[22,"2638","Самарская область","31432165","ИП Марзан Н.А.","637200051650","отсутствует","27-03-2006 00:00:00",null,"VO"]
[23,"2638","Самарская область","28546014","ИП Самородов С.Ф.","637101834265","отсутствует",null,null,"VO"]
[24,"2638","Самарская область","26485289","КРУ АО \"Транснефть - Дружба\"","3235002178","636232001",null,null,"VO"]
[25,"2638","Самарская область","31390473","КРУ АО\"Транснефть-Дружба\" ЛПДС \"Воскресенка\"","3235002178","633045001",null,null,"VO"]
[26,"2638","Самарская область","26812367","Куйбышевская дирекция  по тепловодоснабжению структурное подразделение Центральной дирекции по тепловодоснабжению филиала ПАО «РЖД»","7708503727","631145034",null,null,"VO"]
[27,"2638","Самарская область","31447715","МАУ с.п. Ивашевка \"Ивашевское\"","6325076236","632501001",null,null,"VO"]
[28,"2638","Самарская область","31433850","МКП \"ЖКХ Варламово\"","6325074768","632501001","22-07-2020 00:00:00",null,"VO"]
[29,"2638","Самарская область","26641429","МКП “Волжское”","6325053743","632501001","01-01-2011 00:00:00",null,"VO"]
[30,"2638","Самарская область","26798577","МКП ЖКХ \"Бобровское\"","6350013543","635001001",null,null,"VO"]
[31,"2638","Самарская область","26381101","МП \"Производственное объединение жилищно-коммунального хозяйства муниципального района Кошкинский\"","6374000825","637401001",null,null,"VO"]
[32,"2638","Самарская область","28982060","МП \"УК ЖКХ\" муниципального района Шигонский","6325042903","632501001",null,null,"VO"]
[33,"2638","Самарская область","26485278","МП “ПО ЖКХ” Клявлинского района","6373002805","637301001",null,null,"VO"]
[34,"2638","Самарская область","30354190","МП г.о. Самара \"Самараводоканал\"","6316029945","631801001",null,null,"VO"]
[35,"2638","Самарская область","28875201","МП городского округа Самара \"Инженерные системы\"","6315946321","631901001",null,null,"VO"]
[36,"2638","Самарская область","27271268","МП м.р. Ставропольский \"СтавропольРесурсСервис\"","6382061363","638201001","18-04-2011 00:00:00",null,"VO"]
[37,"2638","Самарская область","27567358","МУП \"Балашейское ЖКХ\"","6325056600","632501001",null,null,"VO"]
[38,"2638","Самарская область","30894268","МУП \"Вода-16\"","6330074114","633001001",null,null,"VO"]
[39,"2638","Самарская область","28869900","МУП \"Водоканал Подстепки\"","6382067750","638201001",null,null,"VO"]
[40,"2638","Самарская область","27540133","МУП \"Водоканал\"","6330043412","633001001","01-02-2011 00:00:00",null,"VO"]
[41,"2638","Самарская область","27973110","МУП \"ВодоканалСервис\"","6330052128","633001001","01-05-2012 00:00:00",null,"VO"]
[42,"2638","Самарская область","26374844","МУП \"Водопроводно-канализационное хозяйство","6357020250","635701001",null,null,"VO"]
[43,"2638","Самарская область","26777219","МУП \"Водоснабжение\"","6375193506","637501001",null,null,"VO"]
[44,"2638","Самарская область","28823110","МУП \"Волга\"","6330061877","633001001",null,null,"VO"]
[45,"2638","Самарская область","28155005","МУП \"Жилищно-коммунальная служба муниципального района Алексеевский Самарской области\"","6377015989","637701001",null,null,"VO"]
[46,"2638","Самарская область","30946548","МУП \"Жилкомхоз\"","6376020626","637601001",null,null,"VO"]
[47,"2638","Самарская область","30949553","МУП \"Каскад\"","6330077637","633001001",null,null,"VO"]
[48,"2638","Самарская область","31369139","МУП \"Кротовка\"","6372023810","637201001","27-12-2019 00:00:00",null,"VO"]
[49,"2638","Самарская область","30391476","МУП \"Обшаровская коммунальная служба\"","6330068953","633001001",null,null,"VO"]
[50,"2638","Самарская область","31346717","МУП \"Обшаровский Водоканал\"","6330086350","633001001","03-04-2019 00:00:00",null,"VO"]
[51,"2638","Самарская область","28545946","МУП \"Петра Дубрава\"","6330061820","633001001",null,null,"VO"]
[52,"2638","Самарская область","28819333","МУП \"Прогресс\"","6330062126","633001001",null,null,"VO"]
[53,"2638","Самарская область","27567296","МУП \"Смышляевское\"","6367057958","636701001",null,null,"VO"]
[54,"2638","Самарская область","28817364","МУП \"Юбилейный\" Волжского района","6330061860","633001001",null,null,"VO"]
[55,"2638","Самарская область","26485191","МУП “Волжское ЖКХ”","6376002176","637601001",null,null,"VO"]
[56,"2638","Самарская область","26485216","МУП “ЖИЛКОМСЕРВИС”","6376017704","637601001",null,null,"VO"]
[57,"2638","Самарская область","26485135","МУП “ЖКХ Пестравского района”","6378000209","637501001",null,null,"VO"]
[58,"2638","Самарская область","26485224","МУП “КОММУНАЛЬНИК”","6376016605","637601001",null,null,"VO"]
[59,"2638","Самарская область","26485237","МУП “МИРНЕНСКОЕ ЖКХ”","6376003719","637601001",null,null,"VO"]
[60,"2638","Самарская область","26485110","МУП “Райжилкомхоз Сызранского района”","6325043985","632501001","30-05-2007 00:00:00",null,"VO"]
[61,"2638","Самарская область","28534239","МУП «Волжское ЖКХ»","6330061891","633001001",null,null,"VO"]
[62,"2638","Самарская область","28535855","МУП «Воскресенское»","6330062020","633001001",null,null,"VO"]
[63,"2638","Самарская область","28534882","МУП «Подстепновка»","6330060947","633001001",null,null,"VO"]
[64,"2638","Самарская область","26485771","МУП Алексеевский комбинат коммунальных предприятий и благоустройства","6350000400","635001001",null,null,"VO"]
[65,"2638","Самарская область","26485797","МУП Большеглушицкого района Самарской области ПОЖКХ","6364000199","636401001",null,null,"VO"]
[66,"2638","Самарская область","28869887","МУП ЖКХ \"Коммунальщик\"","6382067630","638201001",null,null,"VO"]
[67,"2638","Самарская область","26485318","МУП ЖКХ “Малышевка”","6371004885","637101001",null,null,"VO"]
[68,"2638","Самарская область","26485226","МУП КРАСНОЯРСКОЕ ЖКХ","6376002095","637601001",null,null,"VO"]
[69,"2638","Самарская область","31403251","МУП СП Хворостянска \"Мир\"","6330087924","633001001","01-01-2020 00:00:00",null,"VO"]
[70,"2638","Самарская область","26485100","МУП Усольское ЖКХ","6387003855","638701001",null,null,"VO"]
[71,"2638","Самарская область","28974646","МУП Чистый поселок","6330053474","633001001",null,null,"VO"]
[72,"2638","Самарская область","26485769","МУП г.о. Октябрьск “Жилищное управление”","6325037090","632501001",null,null,"VO"]
[73,"2638","Самарская область","26485131","МУПП ЖКХ Похвистневского района","6379000089","635701001",null,null,"VO"]
[74,"2638","Самарская область","28874521","Муниципальное унитарное предприятие жилищно-коммунального хозяйства сельского поселения Курумоч","6330063874","633001001",null,null,"VO"]
[75,"2638","Самарская область","26374826","Новокуйбышевский МУП \"Водоканал\"","6330002381","633001001",null,null,"VO"]
[76,"2638","Самарская область","26381078","ОАО \"Новокуйбышевские очистные сооружения\"","6330024522","633001001",null,null,"VO"]
[77,"2638","Самарская область","27675710","ООО \"АВТОГРАД-ВОДОКАНАЛ\"","6321280368","632101001",null,null,"VO"]
[78,"2638","Самарская область","28145005","ООО \"Аква-Строй\"","6313539031","613301001",null,null,"VO"]
[79,"2638","Самарская область","26374836","ООО \"Алакаевское ЖКХ\"","6350010983","635001001","10-01-2007 00:00:00","17-04-2020 00:00:00","VO"]
[80,"2638","Самарская область","26322451","ООО \"БИАКСПЛЕН\"","5244013331","633043001",null,null,"VO"]
[81,"2638","Самарская область","27937315","ООО \"Богатовское коммунальное хозяйство\"","6377015315","637701001",null,null,"VO"]
[82,"2638","Самарская область","30924132","ООО \"Водеко\"","6312135727","631301001",null,null,"VO"]
[83,"2638","Самарская область","30933675","ООО \"Водоканал\"","6330076954","633001001",null,null,"VO"]
[84,"2638","Самарская область","28436415","ООО \"Волгатеплоснаб\"","6316178168","631601001",null,null,"VO"]
[85,"2638","Самарская область","31213195","ООО \"Волжский магистральный коллектор\"","6350025355","635001001",null,null,"VO"]
[86,"2638","Самарская область","31228946","ООО \"Диалог плюс\"","6315640774","631501001","13-12-2011 00:00:00",null,"VO"]
[87,"2638","Самарская область","31481702","ООО \"ЖЭРП Поволжское\"","6324090541","632401001","03-04-2018 00:00:00",null,"VO"]
[88,"2638","Самарская область","27883109","ООО \"Комфорт Дом\"","6324016308","632401001",null,null,"VO"]
[89,"2638","Самарская область","31443587","ООО \"РВК\"","6320038445","632001001","23-09-2020 00:00:00",null,"VO"]
[90,"2638","Самарская область","26801687","ООО \"Родник\"","6369012230","636901001","04-06-2009 00:00:00",null,"VO"]
[91,"2638","Самарская область","28262841","ООО \"СПЕЦАВТОМАТИКА\"","6323074392","632401001",null,null,"VO"]
[92,"2638","Самарская область","28262360","ООО \"СамРЭК-Эксплуатация\"","6315648332","631201001",null,null,"VO"]
[93,"2638","Самарская область","31256251","ООО \"СамЭК\"","6316236941","631601001","11-08-2017 00:00:00",null,"VO"]
[94,"2638","Самарская область","27945272","ООО \"Самарские коммунальные системы\"","6312110828","631601001",null,null,"VO"]
[95,"2638","Самарская область","26852799","ООО \"Сервисная коммунальная компания\"","6381013776","638101001","01-05-2011 00:00:00",null,"VO"]
[96,"2638","Самарская область","26798594","ООО \"Строй Быт Сервис\"","6372014396","637201001",null,null,"VO"]
[97,"2638","Самарская область","26374821","ООО \"Сызраньводоканал\"","6325028144","632501001",null,null,"VO"]
[98,"2638","Самарская область","26485397","ООО \"Тольяттикаучук\"","6323049893","631050001","14-05-1999 00:00:00",null,"VO"]
[99,"2638","Самарская область","27775925","ООО \"ТрансЭкоСервис\"","6377011670","637701001",null,null,"VO"]
[100,"2638","Самарская область","28817169","ООО \"УК \"Промкомстрой\"","6325058004","632501001",null,null,"VO"]
[101,"2638","Самарская область","27357607","ООО \"Уют\"","6350005366","635001001","02-06-2011 00:00:00",null,"VO"]
[102,"2638","Самарская область","28874702","ООО \"Энергоресурс\"","6317101591","631701001",null,null,"VO"]
[103,"2638","Самарская область","28983650","ООО \"Энергоресурс\"","6376021010","637601001","11-04-2011 00:00:00",null,"VO"]
[104,"2638","Самарская область","30875705","ООО \"Юг сети\"","6319163931","631901001",null,null,"VO"]
[105,"2638","Самарская область","26641452","ООО “ВоКС”","6312101799","632401001","01-01-2011 00:00:00",null,"VO"]
[106,"2638","Самарская область","26485708","ООО “Газпром ПХГ” филиал - “Похвистневское управление подземного хранения газа”","5003065767","635702001",null,null,"VO"]
[107,"2638","Самарская область","26485554","ООО “ЗИМ-Энерго”","6316138623","631601001",null,null,"VO"]
[108,"2638","Самарская область","26485765","ООО “КСК г. Отрадного”","6372008843","637201001",null,null,"VO"]
[109,"2638","Самарская область","26641470","ООО “СовМежХоз”","6369011980","636901001","01-01-2011 00:00:00",null,"VO"]
[110,"2638","Самарская область","26485325","ООО “Теплосеть”","6350011458","635001001",null,null,"VO"]
[111,"2638","Самарская область","30801371","ООО «Водоканал»","6312131916","631201001",null,null,"VO"]
[112,"2638","Самарская область","31211254","ООО «УК «Гарант-Сервис»","6377000799","632501001",null,null,"VO"]
[113,"2638","Самарская область","31346732","ООО ТД\"Респект\"","6322028844","632401001",null,null,"VO"]
[114,"2638","Самарская область","28857939","ООО Управляющая Компания Региональный Ремонтно-Строительный Холдинг","6316196897","631601001",null,null,"VO"]
[115,"2638","Самарская область","31361889","Общество с ограниченной ответственностью «Кинельская теплоэнергетическая компания»","6350025690","635001001","01-12-2019 00:00:00",null,"VO"]
[116,"2638","Самарская область","26781302","ПАО \"КуйбышевАзот\"","6320005915","632401001","14-12-1992 00:00:00",null,"VO"]
[117,"2638","Самарская область","26798861","ПАО \"Тольяттиазот\"","6320004728","632401001",null,null,"VO"]
[118,"2638","Самарская область","26485603","ПАО “КУЗНЕЦОВ”","6319033379","631901001",null,null,"VO"]
[119,"2638","Самарская область","30354094","Самарский областной фонд поддержки индивидуального жилищного строительства на селе","6316042424","631601001",null,null,"VO"]
[120,"2638","Самарская область","26485102","ФГБУ “Санаторий “Волжский утес” Управление делами Президента Российской Федерации","6387002139","638701001",null,null,"VO"]
[121,"2638","Самарская область","26485122","ФГБУЗ МРЦ \"Сергиевские минеральные воды\" ФМБА России","6381000103","638101001",null,null,"VO"]
[122,"2638","Самарская область","28874710","Филиал АО «Водные технологии» «Самарский»","3328462474","631443001",null,null,"VO"]
[123,"2638","Самарская область","30914574","Филиал ФГБУ \"ЦЖКУ\" МИНОБОРОНЫ РОССИИ (по ЦВО)","7729314745","667043001",null,null,"VO"]
[124,"2638","Самарская область","26485106","Челно – Вершинское МУП ПОЖКХ","6385000802","638501001",null,null,"VO"]

{"sheet":"modClassifierValidate","index":46,"n_rows":0,"n_cols":0,"rows_kept":0,"cut":false,"hidden":true,"merged":[]}

{"sheet":"modHyp","index":47,"n_rows":0,"n_cols":0,"rows_kept":0,"cut":false,"hidden":true,"merged":[]}

{"sheet":"modfrmDateChoose","index":48,"n_rows":0,"n_cols":0,"rows_kept":0,"cut":false,"hidden":true,"merged":[]}

{"sheet":"modComm","index":49,"n_rows":0,"n_cols":0,"rows_kept":0,"cut":false,"hidden":true,"merged":[]}

{"sheet":"modThisWorkbook","index":50,"n_rows":0,"n_cols":0,"rows_kept":0,"cut":false,"hidden":true,"merged":[]}

{"sheet":"REESTR_MO","index":51,"n_rows":344,"n_cols":4,"rows_kept":344,"cut":false,"hidden":true,"merged":[]}
["№","МР","МО","МО_ОКТМО"]
[1,"Алексеевский муниципальный район","Алексеевский муниципальный район","36602000"]
[2,"Алексеевский муниципальный район","сельское поселение Авангард","36602404"]
[3,"Алексеевский муниципальный район","сельское поселение Алексеевка","36602408"]
[4,"Алексеевский муниципальный район","сельское поселение Гавриловка","36602412"]
[5,"Алексеевский муниципальный район","сельское поселение Герасимовка","36602416"]
[6,"Алексеевский муниципальный район","сельское поселение Летниково","36602420"]
[7,"Безенчукский муниципальный район","Безенчукский муниципальный район","36604000"]
[8,"Безенчукский муниципальный район","городское поселение Безенчук","36604151"]
[9,"Безенчукский муниципальный район","городское поселение Осинки","36604157"]
[10,"Безенчукский муниципальный район","сельское поселение Васильевка","36604408"]
[11,"Безенчукский муниципальный район","сельское поселение Екатериновка","36604412"]
[12,"Безенчукский муниципальный район","сельское поселение Звезда","36604416"]
[13,"Безенчукский муниципальный район","сельское поселение Купино","36604420"]
[14,"Безенчукский муниципальный район","сельское поселение Натальино","36604424"]
[15,"Безенчукский муниципальный район","сельское поселение Ольгино","36604440"]
[16,"Безенчукский муниципальный район","сельское поселение Переволоки","36604428"]
[17,"Безенчукский муниципальный район","сельское поселение Песочное","36604430"]
[18,"Безенчукский муниципальный район","сельское поселение Преполовенка","36604432"]
[19,"Безенчукский муниципальный район","сельское поселение Прибой","36604436"]
[20,"Богатовский муниципальный район","Богатовский муниципальный район","36606000"]
[21,"Богатовский муниципальный район","сельское поселение Арзамасцевка","36606404"]
[22,"Богатовский муниципальный район","сельское поселение Богатое","36606408"]
[23,"Богатовский муниципальный район","сельское поселение Виловатое","36606412"]
[24,"Богатовский муниципальный район","сельское поселение Максимовка","36606416"]
[25,"Богатовский муниципальный район","сельское поселение Печинено","36606420"]
[26,"Большеглушицкий муниципальный район","Большеглушицкий муниципальный район","36608000"]
[27,"Большеглушицкий муниципальный район","сельское поселение Александровка","36608404"]
[28,"Большеглушицкий муниципальный район","сельское поселение Большая Глушица","36608408"]
[29,"Большеглушицкий муниципальный район","сельское поселение Большая Дергуновка","36608412"]
[30,"Большеглушицкий муниципальный район","сельское поселение Малая Глушица","36608416"]
[31,"Большеглушицкий муниципальный район","сельское поселение Мокша","36608418"]
[32,"Большеглушицкий муниципальный район","сельское поселение Новопавловка","36608420"]
[33,"Большеглушицкий муниципальный район","сельское поселение Фрунзенское","36608424"]
[34,"Большеглушицкий муниципальный район","сельское поселение Южное","36608428"]
[35,"Большечерниговский муниципальный район","Большечерниговский муниципальный район","36610000"]
[36,"Большечерниговский муниципальный район","сельское поселение Августовка","36610404"]
[37,"Большечерниговский муниципальный район","сельское поселение Большая Черниговка","36610412"]
[38,"Большечерниговский муниципальный район","сельское поселение Восточный","36610416"]
[39,"Большечерниговский муниципальный район","сельское поселение Глушицкий","36610408"]
[40,"Большечерниговский муниципальный район","сельское поселение Краснооктябрьский","36610420"]
[41,"Большечерниговский муниципальный район","сельское поселение Пензено","36610424"]
[42,"Большечерниговский муниципальный район","сельское поселение Петровский","36610426"]
[43,"Большечерниговский муниципальный район","сельское поселение Поляков","36610427"]
[44,"Большечерниговский муниципальный район","сельское поселение Украинка","36610428"]
[45,"Борский муниципальный район","Борский муниципальный район","36612000"]
[46,"Борский муниципальный район","сельское поселение Большое Алдаркино","36612404"]
[47,"Борский муниципальный район","сельское поселение Борское","36612408"]
[48,"Борский муниципальный район","сельское поселение Гвардейцы","36612412"]
[49,"Борский муниципальный район","сельское поселение Долматовка","36612416"]
[50,"Борский муниципальный район","сельское поселение Заплавное","36612420"]
[51,"Борский муниципальный район","сельское поселение Коноваловка","36612424"]
[52,"Борский муниципальный район","сельское поселение Новоборское","36612434"]
[53,"Борский муниципальный район","сельское поселение Новый Кутулук","36612432"]
[54,"Борский муниципальный район","сельское поселение Петровка","36612436"]
[55,"Борский муниципальный район","сельское поселение Подгорное","36612440"]
[56,"Борский муниципальный район","сельское поселение Подсолнечное","36612444"]
[57,"Борский муниципальный район","сельское поселение Таволжанка","36612453"]
[58,"Борский муниципальный район","сельское поселение Усманка","36612456"]
[59,"Волжский муниципальный район","Волжский муниципальный район","36614000"]
[60,"Волжский муниципальный район","городское поселение Петра Дубрава","36614155"]
[61,"Волжский муниципальный район","городское поселение Рощинский","36614156"]
[62,"Волжский муниципальный район","городское поселение Смышляевка","36614157"]
[63,"Волжский муниципальный район","сельское поселение Верхняя Подстепновка","36614403"]
[64,"Волжский муниципальный район","сельское поселение Воскресенка","36614404"]
[65,"Волжский муниципальный район","сельское поселение Дубовый умет","36614416"]
[66,"Волжский муниципальный район","сельское поселение Курумоч","36614420"]
[67,"Волжский муниципальный район","сельское поселение Лопатино","36614421"]
[68,"Волжский муниципальный район","сельское поселение Подъем-Михайловка","36614432"]
[69,"Волжский муниципальный район","сельское поселение Просвет","36614436"]
[70,"Волжский муниципальный район","сельское поселение Рождествено","36614440"]
[71,"Волжский муниципальный район","сельское поселение Спиридоновка","36614444"]
[72,"Волжский муниципальный район","сельское поселение Сухая Вязовка","36614448"]
[73,"Волжский муниципальный район","сельское поселение Черновский","36614452"]
[74,"Волжский муниципальный район","сельское поселение Черноречье","36614456"]
[75,"Елховский муниципальный район","Елховский муниципальный район","36615000"]
[76,"Елховский муниципальный район","сельское поселение Березовка","36615405"]
[77,"Елховский муниципальный район","сельское поселение Елховка","36615420"]
[78,"Елховский муниципальный район","сельское поселение Красное Поселение","36615440"]
[79,"Елховский муниципальный район","сельское поселение Красные Дома","36615435"]
[80,"Елховский муниципальный район","сельское поселение Никитинка","36615450"]
[81,"Елховский муниципальный район","сельское поселение Сухие Аврали","36615460"]
[82,"Елховский муниципальный район","сельское поселение Теплый Стан","36615465"]
[83,"Исаклинский муниципальный район","Исаклинский муниципальный район","36616000"]
[84,"Исаклинский муниципальный район","сельское поселение Большое Микушкино","36616420"]
[85,"Исаклинский муниципальный район","сельское поселение Два Ключа","36616404"]
[86,"Исаклинский муниципальный район","сельское поселение Исаклы","36616408"]
[87,"Исаклинский муниципальный район","сельское поселение Ключи","36616416"]
[88,"Исаклинский муниципальный район","сельское поселение Мордово-Ишуткино","36616412"]
[89,"Исаклинский муниципальный район","сельское поселение Новое Ганькино","36616428"]
[90,"Исаклинский муниципальный район","сельское поселение Новое Якушкино","36616432"]
[91,"Исаклинский муниципальный район","сельское поселение Старое Вечканово","36616436"]
[92,"Камышлинский муниципальный район","Камышлинский муниципальный район","36617000"]
[93,"Камышлинский муниципальный район","сельское поселение Байтуган","36617404"]
[94,"Камышлинский муниципальный район","сельское поселение Балыкла","36617408"]
[95,"Камышлинский муниципальный район","сельское поселение Ермаково","36617416"]
[96,"Камышлинский муниципальный район","сельское поселение Камышла","36617420"]
[97,"Камышлинский муниципальный район","сельское поселение Новое Усманово","36617436"]
[98,"Камышлинский муниципальный район","сельское поселение Старое Усманово","36617458"]
[99,"Кинель-Черкасский муниципальный район","Кинель-Черкасский муниципальный район","36620000"]
[100,"Кинель-Черкасский муниципальный район","Межселенная территория Кинель-Черкасского муниципального района, включающая территорию чересполосного земельного участка","36620701"]
[101,"Кинель-Черкасский муниципальный район","сельское поселение Александровка","36620404"]
[102,"Кинель-Черкасский муниципальный район","сельское поселение Березняки","36620408"]
[103,"Кинель-Черкасский муниципальный район","сельское поселение Ерзовка","36620420"]
[104,"Кинель-Черкасский муниципальный район","сельское поселение Кабановка","36620428"]
[105,"Кинель-Черкасский муниципальный район","сельское поселение Кинель-Черкассы","36620432"]
[106,"Кинель-Черкасский муниципальный район","сельское поселение Красная Горка","36620440"]
[107,"Кинель-Черкасский муниципальный район","сельское поселение Кротовка","36620444"]
[108,"Кинель-Черкасский муниципальный район","сельское поселение Муханово","36620448"]
[109,"Кинель-Черкасский муниципальный район","сельское поселение Новые Ключи","36620452"]
[110,"Кинель-Черкасский муниципальный район","сельское поселение Подгорное","36620453"]
[111,"Кинель-Черкасский муниципальный район","сельское поселение Садгород","36620458"]
[112,"Кинель-Черкасский муниципальный район","сельское поселение Тимашево","36620466"]
[113,"Кинель-Черкасский муниципальный район","сельское поселение Черновка","36620468"]
[114,"Кинельский муниципальный район","Кинельский муниципальный район","36618000"]
[115,"Кинельский муниципальный район","сельское поселение Алакаевка","36618404"]
[116,"Кинельский муниципальный район","сельское поселение Бобровка","36618408"]
[117,"Кинельский муниципальный район","сельское поселение Богдановка","36618412"]
[118,"Кинельский муниципальный район","сельское поселение Георгиевка","36618416"]
[119,"Кинельский муниципальный район","сельское поселение Домашка","36618420"]
[120,"Кинельский муниципальный район","сельское поселение Кинельский","36618424"]
[121,"Кинельский муниципальный район","сельское поселение Комсомольский","36618428"]
[122,"Кинельский муниципальный район","сельское поселение Красносамарское","36618432"]
[123,"Кинельский муниципальный район","сельское поселение Малая Малышевка","36618436"]
[124,"Кинельский муниципальный район","сельское поселение Новый Сарбай","36618440"]
[125,"Кинельский муниципальный район","сельское поселение Сколково","36618444"]
[126,"Кинельский муниципальный район","сельское поселение Чубовка","36618448"]
[127,"Клявлинский муниципальный район","Клявлинский муниципальный район","36622000"]
[128,"Клявлинский муниципальный район","сельское поселение Борискино-Игар","36622412"]
[129,"Клявлинский муниципальный район","сельское поселение Назаровка","36622460"]
[130,"Клявлинский муниципальный район","сельское поселение Старое Семенкино","36622452"]
[131,"Клявлинский муниципальный район","сельское поселение Старый Маклауш","36622448"]
[132,"Клявлинский муниципальный район","сельское поселение Черный Ключ","36622468"]
[133,"Клявлинский муниципальный район","сельское поселение станция Клявлино","36622424"]
[134,"Кошкинский муниципальный район","Кошкинский муниципальный район","36624000"]
[135,"Кошкинский муниципальный район","сельское поселение Большая Константиновка","36624408"]
[136,"Кошкинский муниципальный район","сельское поселение Большая Романовка","36624412"]
[137,"Кошкинский муниципальный район","сельское поселение Большое Ермаково","36624424"]
[138,"Кошкинский муниципальный район","сельское поселение Кошки","36624432"]
[139,"Кошкинский муниципальный район","сельское поселение Надеждино","36624448"]
[140,"Кошкинский муниципальный район","сельское поселение Нижняя Быковка","36624452"]
[141,"Кошкинский муниципальный район","сельское поселение Новая Кармала","36624428"]
[142,"Кошкинский муниципальный район","сельское поселение Орловка","36624458"]
[143,"Кошкинский муниципальный район","сельское поселение Русская Васильевка","36624416"]
[144,"Кошкинский муниципальный район","сельское поселение Старое Максимкино","36624464"]
[145,"Кошкинский муниципальный район","сельское поселение Степная Шентала","36624468"]
[146,"Кошкинский муниципальный район","сельское поселение Четыровка","36624480"]
[147,"Кошкинский муниципальный район","сельское поселение Шпановка","36624484"]
[148,"Красноармейский муниципальный район","Красноармейский муниципальный район","36626000"]
[149,"Красноармейский муниципальный район","сельское поселение Алексеевский","36626402"]
[150,"Красноармейский муниципальный район","сельское поселение Андросовка","36626404"]
[151,"Красноармейский муниципальный район","сельское поселение Волчанка","36626408"]
[152,"Красноармейский муниципальный район","сельское поселение Гражданский","36626412"]
[153,"Красноармейский муниципальный район","сельское поселение Кировский","36626416"]
[154,"Красноармейский муниципальный район","сельское поселение Колывань","36626420"]
[155,"Красноармейский муниципальный район","сельское поселение Красноармейское","36626424"]
[156,"Красноармейский муниципальный район","сельское поселение Криволучье-Ивановка","36626426"]
[157,"Красноармейский муниципальный район","сельское поселение Куйбышевский","36626428"]
[158,"Красноармейский муниципальный район","сельское поселение Ленинский","36626432"]
[159,"Красноармейский муниципальный район","сельское поселение Павловка","36626434"]
[160,"Красноармейский муниципальный район","сельское поселение Чапаевский","36626436"]
[161,"Красноярский муниципальный район","Красноярский муниципальный район","36628000"]
[162,"Красноярский муниципальный район","городское поселение Волжский","36628155"]
[163,"Красноярский муниципальный район","городское поселение Мирный","36628158"]
[164,"Красноярский муниципальный район","городское поселение Новосемейкино","36628163"]
[165,"Красноярский муниципальный район","сельское поселение Большая Каменка","36628404"]
[166,"Красноярский муниципальный район","сельское поселение Большая Раковка","36628408"]
[167,"Красноярский муниципальный район","сельское поселение Коммунарский","36628412"]
[168,"Красноярский муниципальный район","сельское поселение Красный Яр","36628416"]
[169,"Красноярский муниципальный район","сельское поселение Новый Буян","36628420"]
[170,"Красноярский муниципальный район","сельское поселение Светлое Поле","36628424"]
[171,"Красноярский муниципальный район","сельское поселение Старая Бинарадка","36628428"]
[172,"Красноярский муниципальный район","сельское поселение Хилково","36628432"]
[173,"Красноярский муниципальный район","сельское поселение Хорошенькое","36628436"]
[174,"Красноярский муниципальный район","сельское поселение Шилан","36628440"]
[175,"Нефтегорский муниципальный район","Нефтегорский муниципальный район","36630000"]
[176,"Нефтегорский муниципальный район","городское поселение Нефтегорск","36630101"]
[177,"Нефтегорский муниципальный район","сельское поселение Бариновка","36630402"]
[178,"Нефтегорский муниципальный район","сельское поселение Богдановка","36630404"]
[179,"Нефтегорский муниципальный район","сельское поселение Дмитриевка","36630408"]
[180,"Нефтегорский муниципальный район","сельское поселение Зуевка","36630412"]
[181,"Нефтегорский муниципальный район","сельское поселение Кулешовка","36630413"]
[182,"Нефтегорский муниципальный район","сельское поселение Покровка","36630414"]
[183,"Нефтегорский муниципальный район","сельское поселение Семеновка","36630416"]
[184,"Нефтегорский муниципальный район","сельское поселение Утевка","36630420"]
[185,"Пестравский муниципальный район","Пестравский муниципальный район","36632000"]
[186,"Пестравский муниципальный район","сельское поселение Высокое","36632404"]
[187,"Пестравский муниципальный район","сельское поселение Красная Поляна","36632408"]
[188,"Пестравский муниципальный район","сельское поселение Майское","36632412"]
[189,"Пестравский муниципальный район","сельское поселение Марьевка","36632416"]
[190,"Пестравский муниципальный район","сельское поселение Михайло-Овсянка","36632420"]
[191,"Пестравский муниципальный район","сельское поселение Мосты","36632424"]
[192,"Пестравский муниципальный район","сельское поселение Падовка","36632428"]
[193,"Пестравский муниципальный район","сельское поселение Пестравка","36632432"]
[194,"Похвистневский муниципальный район","Похвистневский муниципальный район","36634000"]
[195,"Похвистневский муниципальный район","сельское поселение Алькино","36634408"]
[196,"Похвистневский муниципальный район","сельское поселение Большой Толкай","36634412"]
[197,"Похвистневский муниципальный район","сельское поселение Красные Ключи","36634426"]
[198,"Похвистневский муниципальный район","сельское поселение Кротково","36634428"]
[199,"Похвистневский муниципальный район","сельское поселение Малое Ибряйкино","36634420"]
[200,"Похвистневский муниципальный район","сельское поселение Малый Толкай","36634432"]
[201,"Похвистневский муниципальный район","сельское поселение Мочалеевка","36634436"]
[202,"Похвистневский муниципальный район","сельское поселение Новое Мансуркино","36634440"]
[203,"Похвистневский муниципальный район","сельское поселение Подбельск","36634444"]
[204,"Похвистневский муниципальный район","сельское поселение Рысайкино","36634446"]
[205,"Похвистневский муниципальный район","сельское поселение Савруха","36634448"]
[206,"Похвистневский муниципальный район","сельское поселение Среднее Аверкино","36634404"]
[207,"Похвистневский муниципальный район","сельское поселение Староганькино","36634460"]
[208,"Похвистневский муниципальный район","сельское поселение Старопохвистнево","36634468"]
[209,"Похвистневский муниципальный район","сельское поселение Старый Аманак","36634456"]
[210,"Приволжский муниципальный район","Приволжский муниципальный район","36636000"]
[211,"Приволжский муниципальный район","сельское поселение Давыдовка","36636404"]
[212,"Приволжский муниципальный район","сельское поселение Заволжье","36636405"]
[213,"Приволжский муниципальный район","сельское поселение Ильмень","36636406"]
[214,"Приволжский муниципальный район","сельское поселение Новоспасский","36636415"]
[215,"Приволжский муниципальный район","сельское поселение Обшаровка","36636408"]
[216,"Приволжский муниципальный район","сельское поселение Приволжье","36636412"]
[217,"Приволжский муниципальный район","сельское поселение Спасское","36636416"]
[218,"Сергиевский муниципальный район","Сергиевский муниципальный район","36638000"]
[219,"Сергиевский муниципальный район","городское поселение Суходол","36638158"]
[220,"Сергиевский муниципальный район","сельское поселение Антоновка","36638403"]
[221,"Сергиевский муниципальный район","сельское поселение Верхняя Орлянка","36638404"]
[222,"Сергиевский муниципальный район","сельское поселение Воротнее","36638406"]
[223,"Сергиевский муниципальный район","сельское поселение Елшанка","36638408"]
[224,"Сергиевский муниципальный район","сельское поселение Захаркино","36638409"]
[225,"Сергиевский муниципальный район","сельское поселение Калиновка","36638410"]
[226,"Сергиевский муниципальный район","сельское поселение Кандабулак","36638412"]
[227,"Сергиевский муниципальный район","сельское поселение Кармало-Аделяково","36638416"]
[228,"Сергиевский муниципальный район","сельское поселение Красносельское","36638420"]
[229,"Сергиевский муниципальный район","сельское поселение Кутузовский","36638424"]
[230,"Сергиевский муниципальный район","сельское поселение Липовка","36638426"]
[231,"Сергиевский муниципальный район","сельское поселение Светлодольск","36638430"]
[232,"Сергиевский муниципальный район","сельское поселение Сергиевск","36638432"]
[233,"Сергиевский муниципальный район","сельское поселение Серноводск","36638435"]
[234,"Сергиевский муниципальный район","сельское поселение Сургут","36638438"]
[235,"Сергиевский муниципальный район","сельское поселение Черновка","36638444"]
[236,"Ставропольский муниципальный район","Ставропольский муниципальный район","36640000"]
[237,"Ставропольский муниципальный район","сельское поселение Александровка","36640403"]
[238,"Ставропольский муниципальный район","сельское поселение Бахилово","36640406"]
[239,"Ставропольский муниципальный район","сельское поселение Большая Рязань","36640409"]
[240,"Ставропольский муниципальный район","сельское поселение Васильевка","36640412"]
[241,"Ставропольский муниципальный район","сельское поселение Верхнее Санчелеево","36640415"]
[242,"Ставропольский муниципальный район","сельское поселение Верхние Белозерки","36640414"]
[243,"Ставропольский муниципальный район","сельское поселение Выселки","36640418"]
[244,"Ставропольский муниципальный район","сельское поселение Жигули","36640421"]
[245,"Ставропольский муниципальный район","сельское поселение Кирилловка","36640423"]
[246,"Ставропольский муниципальный район","сельское поселение Луначарский","36640424"]
[247,"Ставропольский муниципальный район","сельское поселение Мусорка","36640427"]
[248,"Ставропольский муниципальный район","сельское поселение Нижнее Санчелеево","36640430"]
[249,"Ставропольский муниципальный район","сельское поселение Новая Бинарадка","36640433"]
[250,"Ставропольский муниципальный район","сельское поселение Осиновка","36640439"]
[251,"Ставропольский муниципальный район","сельское поселение Пискалы","36640436"]
[252,"Ставропольский муниципальный район","сельское поселение Подстепки","36640440"]
[253,"Ставропольский муниципальный район","сельское поселение Приморский","36640442"]
[254,"Ставропольский муниципальный район","сельское поселение Севрюкаево","36640448"]
[255,"Ставропольский муниципальный район","сельское поселение Сосновый Солонец","36640451"]
[256,"Ставропольский муниципальный район","сельское поселение Ташелка","36640454"]
[257,"Ставропольский муниципальный район","сельское поселение Тимофеевка","36640445"]
[258,"Ставропольский муниципальный район","сельское поселение Узюково","36640457"]
[259,"Ставропольский муниципальный район","сельское поселение Хрящевка","36640460"]
[260,"Ставропольский муниципальный район","сельское поселение Ягодное","36640463"]
[261,"Сызранский муниципальный район","Сызранский муниципальный район","36642000"]
[262,"Сызранский муниципальный район","городское поселение Балашейка","36642154"]
[263,"Сызранский муниципальный район","городское поселение Междуреченск","36642156"]
[264,"Сызранский муниципальный район","сельское поселение Варламово","36642406"]
[265,"Сызранский муниципальный район","сельское поселение Волжское","36642408"]
[266,"Сызранский муниципальный район","сельское поселение Жемковка","36642412"]
[267,"Сызранский муниципальный район","сельское поселение Заборовка","36642416"]
[268,"Сызранский муниципальный район","сельское поселение Ивашевка","36642418"]
[269,"Сызранский муниципальный район","сельское поселение Новая Рачейка","36642424"]
[270,"Сызранский муниципальный район","сельское поселение Новозаборовский","36642426"]
[271,"Сызранский муниципальный район","сельское поселение Печерское","36642428"]
[272,"Сызранский муниципальный район","сельское поселение Рамено","36642431"]
[273,"Сызранский муниципальный район","сельское поселение Старая Рачейка","36642436"]
[274,"Сызранский муниципальный район","сельское поселение Троицкое","36642440"]
[275,"Сызранский муниципальный район","сельское поселение Усинское","36642444"]
[276,"Сызранский муниципальный район","сельское поселение Чекалино","36642449"]
[277,"Хворостянский муниципальный район","Хворостянский муниципальный район","36644000"]
[278,"Хворостянский муниципальный район","сельское поселение Абашево","36644402"]
[279,"Хворостянский муниципальный район","сельское поселение Владимировка","36644403"]
[280,"Хворостянский муниципальный район","сельское поселение Липовка","36644406"]
[281,"Хворостянский муниципальный район","сельское поселение Масленниково","36644408"]
[282,"Хворостянский муниципальный район","сельское поселение Новокуровка","36644416"]
[283,"Хворостянский муниципальный район","сельское поселение Новотулка","36644420"]
[284,"Хворостянский муниципальный район","сельское поселение Прогресс","36644421"]
[285,"Хворостянский муниципальный район","сельское поселение Романовка","36644422"]
[286,"Хворостянский муниципальный район","сельское поселение Соловьево","36644425"]
[287,"Хворостянский муниципальный район","сельское поселение Студенецы","36644423"]
[288,"Хворостянский муниципальный район","сельское поселение Хворостянка","36644424"]
[289,"Челно-Вершинский муниципальный район","Челно-Вершинский муниципальный район","36646000"]
[290,"Челно-Вершинский муниципальный район","сельское поселение Девлезеркино","36646404"]
[291,"Челно-Вершинский муниципальный район","сельское поселение Каменный Брод","36646412"]
[292,"Челно-Вершинский муниципальный район","сельское поселение Краснояриха","36646416"]
[293,"Челно-Вершинский муниципальный район","сельское поселение Красный Строитель","36646408"]
[294,"Челно-Вершинский муниципальный район","сельское поселение Новое Аделяково","36646419"]
[295,"Челно-Вершинский муниципальный район","сельское поселение Озерки","36646420"]
[296,"Челно-Вершинский муниципальный район","сельское поселение Сиделькино","36646424"]
[297,"Челно-Вершинский муниципальный район","сельское поселение Токмакла","36646428"]
[298,"Челно-Вершинский муниципальный район","сельское поселение Челно-Вершины","36646432"]
[299,"Челно-Вершинский муниципальный район","сельское поселение Чувашское Урметьево","36646440"]
[300,"Челно-Вершинский муниципальный район","сельское поселение Эштебенькино","36646444"]
[301,"Шенталинский муниципальный район","Шенталинский муниципальный район","36648000"]
[302,"Шенталинский муниципальный район","сельское поселение Артюшкино","36648404"]
[303,"Шенталинский муниципальный район","сельское поселение Васильевка","36648432"]
[304,"Шенталинский муниципальный район","сельское поселение Денискино","36648408"]
[305,"Шенталинский муниципальный район","сельское поселение Каменка","36648412"]
[306,"Шенталинский муниципальный район","сельское поселение Канаш","36648414"]
[307,"Шенталинский муниципальный район","сельское поселение Салейкино","36648424"]
[308,"Шенталинский муниципальный район","сельское поселение Старая Шентала","36648440"]
[309,"Шенталинский муниципальный район","сельское поселение Туарма","36648444"]
[310,"Шенталинский муниципальный район","сельское поселение Четырла","36648446"]
[311,"Шенталинский муниципальный район","сельское поселение Шентала","36648448"]
[312,"Шигонский муниципальный район","Шигонский муниципальный район","36650000"]
[313,"Шигонский муниципальный район","сельское поселение Береговой","36650416"]
[314,"Шигонский муниципальный район","сельское поселение Бичевная","36650406"]
[315,"Шигонский муниципальный район","сельское поселение Волжский Утес","36650407"]
[316,"Шигонский муниципальный район","сельское поселение Малячкино","36650410"]
[317,"Шигонский муниципальный район","сельское поселение Муранка","36650411"]
[318,"Шигонский муниципальный район","сельское поселение Новодевичье","36650412"]
[319,"Шигонский муниципальный район","сельское поселение Пионерский","36650420"]
[320,"Шигонский муниципальный район","сельское поселение Подвалье","36650424"]
[321,"Шигонский муниципальный район","сельское поселение Суринск","36650432"]
[322,"Шигонский муниципальный район","сельское поселение Тайдаково","36650436"]
[323,"Шигонский муниципальный район","сельское поселение Усолье","36650440"]
[324,"Шигонский муниципальный район","сельское поселение Шигоны","36650444"]
[325,"городской округ Жигулевск","городской округ Жигулевск","36704000"]
[326,"городской округ Кинель","городской округ Кинель","36708000"]
[327,"городской округ Новокуйбышевск","городской округ Новокуйбышевск","36713000"]
[328,"городской округ Октябрьск","городской округ Октябрьск","36718000"]
[329,"городской округ Отрадный","городской округ Отрадный","36724000"]
[330,"городской округ Похвистнево","городской округ Похвистнево","36727000"]
[331,"городской округ Самара","Железнодорожный","36701305"]
[332,"городской округ Самара","Кировский","36701310"]
[333,"городской округ Самара","Красноглинский","36701315"]
[334,"городской округ Самара","Куйбышевский","36701320"]
[335,"городской округ Самара","Ленинский","36701325"]
[336,"городской округ Самара","Октябрьский","36701330"]
[337,"городской округ Самара","Промышленный","36701335"]
[338,"городской округ Самара","Самарский","36701340"]
[339,"городской округ Самара","Советский","36701345"]
[340,"городской округ Самара","городской округ Самара","36701000"]
[341,"городской округ Сызрань","городской округ Сызрань","36735000"]
[342,"городской округ Тольятти","городской округ Тольятти","36740000"]
[343,"городской округ Чапаевск","городской округ Чапаевск","36750000"]

{"sheet":"REESTR_MO_FILTER","index":52,"n_rows":0,"n_cols":0,"rows_kept":0,"cut":false,"hidden":true,"merged":[]}

{"sheet":"modfrmReestrMR","index":53,"n_rows":0,"n_cols":0,"rows_kept":0,"cut":false,"hidden":true,"merged":[]}

{"sheet":"modServiceModule","index":54,"n_rows":0,"n_cols":0,"rows_kept":0,"cut":false,"hidden":true,"merged":[]}

{"sheet":"modfrmCheckUpdates","index":55,"n_rows":0,"n_cols":0,"rows_kept":0,"cut":false,"hidden":true,"merged":[]}

{"sheet":"REESTR_DS","index":56,"n_rows":3,"n_cols":2,"rows_kept":3,"cut":false,"hidden":true,"merged":[]}
[]
[]
[null,"городской округ Тольятти, городской округ Тольятти (36740000);"]

{"sheet":"REESTR_CHS","index":57,"n_rows":0,"n_cols":0,"rows_kept":0,"cut":false,"hidden":true,"merged":[]}

{"sheet":"REESTR_LINK","index":58,"n_rows":3,"n_cols":3,"rows_kept":3,"cut":false,"hidden":true,"merged":[]}
["ID","LINK_NAME","REGION"]
[4189678,"https://portal.eias.ru/Portal/DownloadPage.aspx?type=12&guid=????????-????-????-????-????????????","ALL"]
[4190415,"https://eias.fstrf.ru/disclo/get_file?p_guid=????????-????-????-????-????????????","ALL"]